Workbook

Sheet INSTRUCTIONS
B2: EMPLOYEE TRAVEL REIMBURSEMENT
A4: Set Up: | B4: For First Time users only.
B6: Step 1 | C6: Before doing anything else, click on Enable Content ribbon at top of sheet if it appears for you.
B8: Step 2 | C8: Fill out the Header Page. (Click on Page Marked "Header" along bottom of Spreadsheet)
B11: Step 3 | C11: Save the Spreadsheet under whatever name you wish to your Home folder on the network.
D13: You now have a personal Travel Claim Master. You can make multiple copies with just the Header completed to save you the
D14: time of downloading and starting a new claim from scratch for each new claim. Keep in mind the mileage rate changes each Jan. 1 and
D15: per diems rates change each Oct. 1 and the HSA Intranet claim form is updated at those intervals. Be sure you keep a current version.
A16: Instructions for use:
B18: Step 1 | C18: Claim Description
C19: Enter Purpose of travel here (indicate month)
B21: Step 2 | C21: Mileage | E21: (Click on Page Marked "Mileage" along bottom of Spreadsheet)
B23: A) | C23: Enter Each trip in date order - Please try to enter miles for one month on one claim.
B24: B) | C24: If miles are claimed for out of county travel, accompanying paperwork required | K24: (See Line 21 on "Header" page)
B25: C) | C25: If the Claim does not contain mileage, skip to step 3
B26: D) | C26: If the claim is mileage only, after mileage is entered skip to step 7
B28: Step 3 | C28: Per Diems-Out of County/State-Set Up | G28: ATTENTION: Required before doing step 4 | K28: (Click on Page Marked "Per Diems" along bottom of Spreadsheet)
B30: A) | C30: Find "County -- City" to which you traveled from the drop-down menu
C31: If you traveled out of state, use the second drop-down menu labeled Out of State
C32: menu to set "State -- City" | F32: Accompanying paperwork required | J32: (See Line 24 on "Header" page)
B33: B) | C33: Click on Federal Per Diem Rate Lookup link to find applicable per diem rates.
C34: Select State and City of travel and the website will produce the lodging rate and a Meal and Incident Expense (M&IE) Total.
C35: In order to find M&IE breakdown use the same link but select M&IE Breakdown in left hand column menu. Here is the breakdown effective 10/1/15:
B61: B) | C61: Set Start Date and End Date, as well as departure and return times. Be sure to use the time you left
C62: and returned to Santa Cruz, not your flight time.
B64: Step 4 | C64: Per Diems-Meals & Lodging Entry | K64: (See Worksheet starting on line 19 of "Per Diem" page)
B66: A) | C66: Enter the meals you wish to claim using the federal rates obtained from website.
C67: See HSA Travel Claim Policy for details on claiming meals. Link to Policy: | K67: http://hsa/pp/501.pdf
E69: Accompanying paperwork required | I69: (See Line 23 on "Header" page)
B71: B) | C71: Enter the amount of lodging per night. | K71: (Click on Page Marked "Per Diems" along bottom of Spreadsheet)
C72: If you have exceeded per deim amounts, you must have prior approval or you will only be paid up to the
C73: per diem amount.
E74: Accompanying paperwork required | I74: (See Line 23 on "Header" page)
B77: Step 5 | C77: Miscellaneous entries | K77: (Click on Page Marked "misc. entries" along bottom of Spreadsheet)
C79: Enter as needed for other expenses.
B82: Step 6 | C82: Print your form
B84: A) | C84: Print Form Front
B85: B) | C85: Print Form Back
B86: C) | C86: Print Extension | H86: For Claims with over 16 lines of Mileage
B87: D) | C87: Print Misc. Entries

Sheet Header
B2: HEADER INFORMATION
A3: Name:
A4: Worksite:
A5: Department: | B5: HSA
A6: Phone:
A7: Employee number: | D7: (6 digit number starting with 00 found on timecard and pay slip)
D8: Enter last four digits (five if necessary) only including leading zero if appropriate -
D9: (numbers beginning with zero must be preceded by an apostrophe)
A10: GL Key
A11: JL Key 1 | D11: Note: If you will be entering some mileage with no JL Key (user code) and some mileage with a JL Key, leave the JL Key 1 field blank, and enter your JL Key in the JL Key 2 field.
A12: JL Key 2
A18: WHAT DO I NEED TO GO WITH MY CLAIM? | G18: (Always include original and 1 copy of claim and supporting documents)
A19: TYPE OF CLAIM | F19: INFORMATION REQUIRED
A20: MILEAGE ONLY - IN COUNTY | F20: Requires Signed Claim (Front & Back) only
A21: MILEAGE ONLY WITH OUT OF COUNTY MILES | F21: Requires Signed Claim (Front & Back) with either HSA-94 (meetings & client visits) or HSA-853 (Conference Training Request & Report Form)
A22: DAY TRIP - OUT OF COUNTY | F22: Requires Signed Claim (Front & Back) and either HSA-94 (meetings & client visits) or HSA-853 (Conference Training Request & Report Form), Agenda or other document showing Location, Time and Date.
A23: OVERNIGHT - OUT OF COUNTY | F23: Requires Signed Claim (Front & Back) and either HSA-94 (meetings & client visits) or HSA-853 (Conference Training Request & Report Form), Agenda or other document showing Location, Time and Date. Include Hotel Bill if claiming other than Per Diem
A24: OUT OF STATE | F24: Requires Signed Claim (Front & Back) and HSA-854 (Conference Training Request & Report Form-Out of State) with signature from CAO, Agenda or other document showing Location, Time and Date. Include Hotel Bill if claiming other than Per Diem
A25: CLAIM FOR TRIP WITH PRIOR ADVANCE | F25: In addition to information listed above, include copy of advance request. Must be submitted within 15 days of return
A27: AIR TRAVEL | F27: To claim for reimbursement, itemize on claim form and include Ticket or document showing price, and copy of cancelled check or Credit Card receipt.
A29: REGISTRATIONS | F29: To claim, itemize on claim form and include copy of registration and copy of cancelled check or Credit Card receipt.
A31: BRIDGE TOLLS / PARKING | F31: To claim, itemize on claim form and include receipts
A33: TELEPHONE | F33: To claim, itemize on claim form and include Hotel Bill
A35: CELL PHONE | F35: To claim, itemize on claim form and include ENTIRE phone bill

Sheet misc. entries
A1: MISCELLANEOUS ENTRIES - Enter amount in appropriate square | R1: Subobject | V1: MISCELLANEOUS ENTRIES
A3: 62928 | B3: Air Fare | F3: Provide receipt and canceled check or Credit Card Receipt | R3: 4150 | V3: 62928 | W3: Air Fare | Y3: =+D3 -> 0
A5: 62928 | B5: Airport Shuttle | F5: Provide receipt and canceled check or Credit Card Receipt | R5: 4168 | V5: 62928 | W5: Airport Shuttle | Y5: =+D5 -> 0
A7: 62928 | B7: Auto Rental | F7: Provide receipt and canceled check or Credit Card Receipt-requires prior approval | R7: 4152 | V7: 62928 | W7: Auto Rental | Y7: =+D7 -> 0
A9: 62928 | B9: Gas, Oil, Fuel | F9: Use only for rental car or County car. Fuel is included in mileage for personal vehicles | R9: 4160 | V9: 62928 | W9: Gas, Oil, Fuel | Y9: =+D9 -> 0
A11: 62928 | B11: Parking | F11: Provide receipt | R11: 4168 | V11: 62928 | W11: Parking | Y11: =+D11 -> 0
A13: 62928 | B13: Bridge Tolls | F13: Provide receipt | R13: 4168 | V13: 62928 | W13: Bridge Tolls | Y13: =+D13 -> 0
A15: 62928 | B15: Registration | F15: Provide receipt and canceled check or Credit Card Receipt | R15: 4170 | V15: 62928 | W15: Registration | Y15: =+D15 -> 0
A17: 62928 | B17: Use of Personal Cell Phone for County Business | F17: Enter total reimbursement amount requested. Reimbursement rate of $.15 per minute. Cannot exceed bill total. Attach cell phone bill highlight applicable calls. | R17: 3241 | V17: 62928 | W17: Cell Phone | Y17: =+D17 -> 0
C18: Total # of minutes | G18: Bill Total | X18: County minutes used | Z18: =+E18 -> 0 | AB18: bill total | AC18: =+H18 -> 0
A20: 62928 | B20: Overnight Telephone or Internet Use for County Business | F20: 1 call home per day, up to $10.00. Provide Hotel Receipt | R20: 3241 | V20: 62928 | W20: Overnight Telephone | Y20: =+D20 -> 0
W22: Total | Y22: =Y3+Y5+Y7+Y9+Y11+Y13+Y15+Y17+Y20 -> 0
A23: S:\FISCALSHR\Travel\Travel Claim Form.xls\misc. entries

Sheet Mileage
A2: ENTER DAILY MILEAGE HERE. You have 46 lines. If you require additional space, submit a separate claim. Try to keep in date order. Try to start and end with the beginning or end of the month. If you do not have your odometer or trip meter readings, enter total miles in END column. They will be checked against the charts.
A3: Caution: Do Not print this page to go with your claim. Please Print "Form Back" and "Extension" (if required). | J3: For JL Key 1 enter 1
J4: For JL Key 2 enter 2
A5: DATE | B5: TIME | C5: ORIGIN | D5: DESTINATION | E5: PURPOSE OF TRIP | F5: END | G5: START | H5: MILES CLAIMED | J5: JL Key
H6: =+F6-G6 -> 0
H7: =+F7-G7 -> 0
H8: 0
H9: 0
H10: 0
H11: 0
H12: 0
H13: 0
H14: 0
H15: 0
H16: 0
H17: 0
H18: 0
H19: 0
H20: 0
H21: 0
H22: 0
H23: 0
H24: 0
H25: 0
H26: 0
H27: 0
H28: 0
H29: 0
H30: 0
H31: 0
H32: 0
H33: 0
H34: 0
H35: 0
H36: 0
H37: 0
H38: 0
H39: 0
H40: 0
H41: 0
H42: 0
H43: 0
H44: 0
H45: 0
H46: 0
H47: 0
H48: 0
H49: 0
H50: 0
H51: 0
H52: 0

Sheet Per Diems
B1: Select the County of Travel and Dates and Times of Travel
B2: In State Travel | E2: Note: Use drop downs to populate In State or Out of State City/County of Travel. Please look up per diem rates by clicking on Federal Per Diem Rate Look up link below. Key in rates for requested meal and lodging per diems into grid at bottom. See instructions tab for more detail regarding per diems. | X2: State/City | AA2: CO-CITY
X3: -- | AA3: -- | AG3: =+B8 -> 00:00:00 | AH3: =HOUR(B12) -> 0 | AI3: =MINUTE(B12) -> 0 | AL3: =TIME(AH3,AI3,0) -> 00:00:00
AC4: IN STATE | AE4: Out of State
B5: Out of State Travel | AC5: Hotel | AG5: =+B10 -> 00:00:00 | AH5: =HOUR(B14) -> 0 | AI5: =MINUTE(B14) -> 0 | AJ5: PM | AK5: =LEFT(AJ5,1) -> P | AL5: =TIME(IF(+AK5="p",+AH5,+AH5),AI5,0) -> 00:00:00
AC6: W/tax_rate | AE6: Pre-tax_rate
B7: Departure Date | J7: Federal Per Diem Rate Look Up: | O7: http://www.gsa.gov/portal/content/104877 | AA7: Per Deim Rates | AC7: =VLOOKUP(AA3,PDS,6) -> 0 | AE7: =VLOOKUP($X$3,OOS,4) -> 0 | AK7: 06:00:00
C8: ( Format 00/00, month and date) | AK8: 11:00:00
B9: Return Date | AB9: Day 1 | AC9: Day 2 | AD9: Day 3 | AE9: Day 4 | AF9: Day 5 | AG9: Day 6 | AK9: 19:00:00
C10: ( Format 00/00, month and date) | AB10: =+$B$8 -> 00:00:00 | AC10: =IF($B$10>$B$8,$B$8+1,0) -> 00:00:00 | AD10: =IF($B$10=$B$8+1,0,IF($B$10>$B$8+1,$B$8+2,0)) -> 00:00:00 | AE10: =IF($B$10=$B$8+2,0,IF($B$10>$B$8+2,$B$8+3,0)) -> 00:00:00 | AF10: =IF($B$10=$B$8+3,0,IF($B$10>$B$8+3,$B$8+4,0)) -> 00:00:00 | AG10: =IF($B$10=$B$8+4,0,IF($B$10>$B$8+4,$B$8+5,0)) -> 00:00:00
B11: Time of Departure | C11: Hour | D11: Minute | E11: Morning/Afternoon (AM/PM)
B12: =IF(LEFT(E12,1)="p",TIME(C12+12,D12,0),TIME(C12,D12,0)) -> 00:00:00 | D12: 0 | E12: A | H12: Time you left Santa Cruz | Z12: In State | AA12: Breakfast | AB12: =IF(B12<AK7,B21,0) -> 0 | AC12: =IF(AC10=0,0,$B$21) -> 0 | AD12: =IF(AD10=0,0,$B$21) -> 0 | AE12: =IF(AE10=0,0,$B$21) -> 0 | AF12: =IF(AF10=0,0,$B$21) -> 0 | AG12: =IF(AG10=0,0,$B$21) -> 0
B13: Time of Return | E13: Morning/Afternoon (AM/PM) | Z13: In State | AA13: Lunch | AB13: =IF(B12<AK8,C21,0) -> 0 | AC13: =IF(AC10=0,0,IF(AD10=0,IF(B14<AK8,0,$C$21),$C$21)) -> 0 | AD13: =IF(AD10=0,0,IF(AE10=0,IF(B14<AK8,0,$C$21),$C$21)) -> 0 | AE13: =IF(AE10=0,0,IF(AF10=0,IF(B14<AK8,0,$C$21),$C$21)) -> 0 | AF13: =IF(AF10=0,0,IF(AG10=0,IF(J24<M20,0,$C$21),$C$21)) -> 0 | AG13: =IF(AG10=0,0,IF(H29=0,IF(K24<N20,0,$C$21),$C$21)) -> 0
B14: =IF(LEFT(E14,1)="p",TIME(C14+12,D14,0),TIME(C14,D14,0)) -> 00:00:00 | E14: A | H14: Time you returned to Santa Cruz | Z14: In State | AA14: Dinner | AB14: =IF(AB10=0,0,IF(AC10=0,IF(B14<AK9,0,$D$21),$D$21)) -> 0 | AC14: =IF(AC10=0,0,IF(AD10=0,IF(B14<AK9,0,$D$21),$D$21)) -> 0 | AD14: =IF(AD10=0,0,IF(AE10=0,IF(B14<AK9,0,$D$21),$D$21)) -> 0 | AE14: =IF(AE10=0,0,IF(AF10=0,IF(B14<AK9,0,$D$21),$D$21)) -> 0 | AF14: =IF(AF10=0,0,IF(AG10=0,IF(J24<M21,0,$D$21),$D$21)) -> 0 | AG14: =IF(AG10=0,0,IF(H29=0,IF(K24<N21,0,$D$21),$D$21)) -> 0
Z16: Out of State | AA16: Breakfast
Z17: Out of State | AA17: Lunch
Z18: Out of State | AA18: Dinner
K19: If you received an advance, enter amount here.
B20: Enter meals purchased. You may enter the exact amount, or the per diem. Do not enter meals provided at a function. | K20: Advance:
B24: Meals | C24: Day 1 | D24: Day 2 | E24: Day 3 | F24: Day 4 | G24: Day 5 | J24: Meal Per Diems can only be claimed for out of county travel.
B25: Date | C25: =IF(B8="",0,+$B$8) -> 00:00:00 | D25: =IF($B$10>$B$8,$B$8+1,0) -> 00:00:00 | E25: =IF($B$10=$B$8+1,0,IF($B$10>$B$8+1,$B$8+2,0)) -> 00:00:00 | F25: =IF($B$10=$B$8+2,0,IF($B$10>$B$8+1,$B$8+3,0)) -> 00:00:00 | G25: =IF($B$10=$B$8+3,0,IF($B$10>$B$8+3,$B$8+4,0)) -> 00:00:00
B26: Breakfast | J26: To claim breakfast, departure time must be before 6:00 a.m.
B27: Lunch | J27: To claim lunch, departure time must be before 11:00 a.m. and return time must be after 2:00 p.m.
B28: Dinner | J28: To claim dinner, departure time must be before 5:00 p.m. and return time must be after 7:00 p.m.
B30: Lodging | J30: Input lodging rate plus any tax from your lodging bill.
C31: Do Not enter lodging amounts above Per Diem rates unless approved by the Auditor's Office prior to departure

Sheet Form Front
B2: THIS BOX FOR AUDITOR'S USE ONLY | F2: COUNTY OF SANTA CRUZ | N2: CLAIMANT | P2: =+Header!B3 -> 0
A3: VOUCHER NUMBER | C3: PAYMENT DATE
I4: TRAVEL REIMBURSEMENT | N4: WORKSITE | P4: =+Header!B4 -> 0
N5: DEPT | P5: =+Header!B5 -> HSA | R5: PHONE | S5: =+Header!B6 -> 0
A6: VENDOR NUMBER / SUFFIX | C6: 1 CK | D6: DOCUMENT AMOUNT ** | H6: LNS | I6: T/C HASH
R7: PHONE
A8: =IF(LEN(Header!B7)=4,CONCATENATE(60,Header!B7," ","(tab) 01"),IF(LEN(Header!B7)=5,CONCATENATE(6,Header!B7," ","(tab) 01"),"")) ->  | D8: =+B18 -> 0 | H8: =COUNT(D11:E17,B17)-1 -> 0 | I8: =+H8*150+(IF(B17=0,0,49)) -> 0 | N8: Reviewed By | R8: PHONE
A9: DESCRIPTION - INDICATE MONTH (& purpose) OF TRAVEL >>>>> | D9: =INSTRUCTIONS!H19 -> 0
A10: T/C | B10: AMOUNT | D10: GL KEY | F10: GL OBJECT | H10: JL KEY | L10: DOC REF | O10: GL OBJECT TITLE:
A11: 150 | B11: =SUM(D38:L39) -> 0 | D11: =IF(B11=0,"",+Header!$B$10) ->  | F11: 62922 | H11: =IF(B11=0,"",Header!$B$11) ->  | O11: LODGING-INCLUDING TAXES | R11: Attach Receipts If Amount Exceeds Per Diem
A12: 150 | B12: =SUM(D35:L36)+SUM(D37:L37) -> 0 | D12: =IF(B12=0,"",+Header!$B$10) ->  | F12: 62924 | H12: =IF(B12=0,"",Header!$B$11) ->  | O12: MEALS-and overnight incidental
A13: 150 | B13: =IF('Form Back'!K24=0,+'Form Back'!K27,'Form Back'!K24) -> 0 | D13: =IF(B13=0,"",+Header!$B$10) ->  | F13: 62926 | H13: =IF(B13=0,"",Header!$B$11) ->  | O13: MILEAGE (From Reverse Side)
A14: 150 | B14: ='misc. entries'!Y22 -> 0 | D14: =IF(B14=0,"",+Header!$B$10) ->  | F14: 62928 | H14: =IF(B14=0,"",Header!$B$11) ->  | O14: OTHER (Explain on Reverse Side)
A15: 150 | B15: ='Form Back'!K25 -> 0 | D15: =IF(B15=0,"",+Header!B10) ->  | F15: =IF(B15=0,"",62926) ->  | H15: =IF(B15=0,"",Header!$B$12) ->  | O15: DESCR: | P15: =IF(B15>0," Mileage with 2nd User Code","") -> 
B16: =SUM(B11:C15) -> 0 | O16: TOTAL THIS CLAIM (A)
A17: 199 | B17: =+'Per Diems'!M20 -> 0 | D17: =IF(B17=0,"",+Header!$B$10) ->  | F17: 62940 | O17: TOTAL ADVANCE (B) See Below*
B18: =+B16+B17 -> 0 | O18: TOTAL OF A + B (Transfer this amount to AMOUNT** line)
B19: =+B16-B17 -> 0 | O19: TOTAL REIMBURSEMENT (A - B)
A20: DATES>>> | D20: =+'Per Diems'!C25 -> 00:00:00 | F20: ='Per Diems'!D25 -> 00:00:00 | H20: ='Per Diems'!E25 -> 00:00:00 | J20: ='Per Diems'!F25 -> 00:00:00 | L20: ='Per Diems'!G25 -> 00:00:00 | O20: *Accounting for Travel Advance - The amount in line (B) must be less than or equal to line (A). Any amount greater than (A) must be refunded to the County by personal check or cash. This amount must accompany the travel claim form.
A21: County of Travel | D21: =IF(VLOOKUP('Per Diems'!AA3,PDS,2)='In State'!B6,VLOOKUP('Per Diems'!X3,OOS,2),VLOOKUP('Per Diems'!AA3,PDS,2)) -> 
A22: City of Travel | D22: =IF(VLOOKUP('Per Diems'!AA3,PDS,2)='In State'!B6,VLOOKUP('Per Diems'!X3,OOS,3),VLOOKUP('Per Diems'!AA3,PDS,3)) -> 
D23: =VLOOKUP('Per Diems'!AA5,PDS,2) -> 
A24: Time of Departure | D24: =+'Per Diems'!B12 -> 00:00:00 | O24: SIGNATURES - SEE CERTIFICATIONS ON REVERSE SIDE
O25: CLAIMANT | S25: DATE
A26: Time of Return | D26: =IF('Per Diems'!$B$8='Per Diems'!$B$10,+'Per Diems'!$B$14,"") -> 00:00:00 | F26: =IF('Per Diems'!$B$8='Per Diems'!$B$10-1,+'Per Diems'!$B$14,"") ->  | H26: =IF('Per Diems'!$B$8='Per Diems'!$B$10-2,+'Per Diems'!$B$14,"") ->  | J26: =IF('Per Diems'!$B$8='Per Diems'!$B$10-3,+'Per Diems'!$B$14,"") ->  | L26: =IF('Per Diems'!$B$8='Per Diems'!$B$10-4,+'Per Diems'!$B$14,"") -> 
A27: Meals-Breakfast | D27: ='Per Diems'!C26 -> 0 | F27: ='Per Diems'!D26 -> 0 | H27: ='Per Diems'!E26 -> 0 | J27: ='Per Diems'!F26 -> 0 | L27: ='Per Diems'!G26 -> 0 | O27: Supervisor | S27: DATE
A30: Meals-Lunch | D30: ='Per Diems'!C27 -> 0 | F30: ='Per Diems'!D27 -> 0 | H30: ='Per Diems'!E27 -> 0 | J30: ='Per Diems'!F27 -> 0 | L30: ='Per Diems'!G27 -> 0
O31: DEPARTMENT HEAD By: | S31: DATE
A32: Meals-Dinner | D32: ='Per Diems'!C28 -> 0 | F32: ='Per Diems'!D28 -> 0 | H32: ='Per Diems'!E28 -> 0 | J32: ='Per Diems'!F28 -> 0 | L32: ='Per Diems'!G28 -> 0
A34: $5 Incidentals (overnight only) | D34: =IF(F20="",0,IF(F20=D20+1,5,0)) -> 0 | F34: =IF(H20="",0,IF(H20=F20+1,5,0)) -> 0 | H34: =IF(J20="",0,IF(J20=H20+1,5,0)) -> 0 | J34: =IF(L20="",0,IF(L20=J20+1,5,0)) -> 0 | L34: 0 | M34: Total Taxable Per Diem | O34: CAMS Pre-Audit by A/C | S34: DATE
A35: Per Diem: Overnight | D35: =IF(F20="",0,IF(F20=D20+1,+D27+D30+D32+D34,0)) -> 0 | F35: =IF(F20="no trip",0,IF(F20=D20+1,F27+F30+F32+F34,0)) -> 0 | H35: =IF(H20=F20+1,SUM(H27:I34),0) -> 0 | J35: =IF(J20=H20+1,J27+J30+J32+J34,0) -> 0 | L35: =IF(L20=0,0,IF(L20=J20+1,+L27+L30+L32+L34,0)) -> 0
O36: Keyed by DPW/AC | S36: DATE
A37: Per Diem: Taxable: No Overnight | D37: =IF(F20=0,+D27+D30+D32,IF(F20=D20+1,0,0)) -> 0 | F37: =IF(F20=0,0,IF(F20=D20+1,0,+F27+F30+F32)) -> 0 | H37: =IF(H20=0,0,IF(H20=F20+1,0,+H27+H30+H32)) -> 0 | J37: =IF(J20=0,0,IF(J20="",0,IF(J20=H20+1,0,+J27+J30+J32))) -> 0 | L37: =IF(L20=0,0,IF(L20=J20+1,0,+L27+L30+L32)) -> 0 | M37: =+D37+F37+H37+J37+L37 -> 0
A38: Lodging-Including Taxes | D38: ='Per Diems'!C30 -> 0 | F38: ='Per Diems'!D30 -> 0 | H38: ='Per Diems'!E30 -> 0 | J38: ='Per Diems'!F30 -> 0 | L38: ='Per Diems'!G30 -> 0 | O38: Final audit by AC | S38: DATE
A40: Total Per Diem | D40: =+D38+D37+D35 -> 0 | F40: =+F38+F37+F35 -> 0 | H40: =+H38+H37+H35 -> 0 | J40: =+J38+J37+J35 -> 0 | L40: =+L38+L37+L35 -> 0
A42: AUD-26 FOR FAMIS 4.2 (white) (REV JP 12.2.15)
B43: S:\FISCALSHR\Travel\Travel Claim Form.xls\Form Front

Sheet Form Back
F1: PURPOSE OF TRIP | H1: ODOMETER | K1: MILES CLAIMED
A2: DATE | B2: TIME | C2: ORIGIN | D2: DESTINATION | H2: END | J2: START | N2: JL Key
A3: =+Mileage!A6 -> 00:00:00 | B3: =+Mileage!B6 -> 00:00:00 | C3: =+Mileage!C6 -> 0 | D3: =+Mileage!D6 -> 0 | F3: =+Mileage!E6 -> 0 | H3: =+Mileage!F6 -> 0 | J3: =+Mileage!G6 -> 0 | K3: =+H3-J3 -> 0 | N3: =+Mileage!J6 -> 0
A4: =+Mileage!A7 -> 00:00:00 | B4: =+Mileage!B7 -> 00:00:00 | C4: =+Mileage!C7 -> 0 | D4: =+Mileage!D7 -> 0 | F4: =+Mileage!E7 -> 0 | H4: =+Mileage!F7 -> 0 | J4: =+Mileage!G7 -> 0 | K4: =+H4-J4 -> 0 | N4: =+Mileage!J7 -> 0
A5: =+Mileage!A8 -> 00:00:00 | B5: =+Mileage!B8 -> 00:00:00 | C5: =+Mileage!C8 -> 0 | D5: =+Mileage!D8 -> 0 | F5: =+Mileage!E8 -> 0 | H5: =+Mileage!F8 -> 0 | J5: =+Mileage!G8 -> 0 | K5: 0 | N5: =+Mileage!J8 -> 0
A6: =+Mileage!A9 -> 00:00:00 | B6: =+Mileage!B9 -> 00:00:00 | C6: =+Mileage!C9 -> 0 | D6: =+Mileage!D9 -> 0 | F6: =+Mileage!E9 -> 0 | H6: =+Mileage!F9 -> 0 | J6: =+Mileage!G9 -> 0 | K6: 0 | N6: =+Mileage!J9 -> 0
A7: =+Mileage!A10 -> 00:00:00 | B7: =+Mileage!B10 -> 00:00:00 | C7: =+Mileage!C10 -> 0 | D7: =+Mileage!D10 -> 0 | F7: =+Mileage!E10 -> 0 | H7: =+Mileage!F10 -> 0 | J7: =+Mileage!G10 -> 0 | K7: 0 | N7: =+Mileage!J10 -> 0
A8: =+Mileage!A11 -> 00:00:00 | B8: =+Mileage!B11 -> 00:00:00 | C8: =+Mileage!C11 -> 0 | D8: =+Mileage!D11 -> 0 | F8: =+Mileage!E11 -> 0 | H8: =+Mileage!F11 -> 0 | J8: =+Mileage!G11 -> 0 | K8: 0 | N8: =+Mileage!J11 -> 0
A9: =+Mileage!A12 -> 00:00:00 | B9: =+Mileage!B12 -> 00:00:00 | C9: =+Mileage!C12 -> 0 | D9: =+Mileage!D12 -> 0 | F9: =+Mileage!E12 -> 0 | H9: =+Mileage!F12 -> 0 | J9: =+Mileage!G12 -> 0 | K9: 0 | N9: =+Mileage!J12 -> 0
A10: =+Mileage!A13 -> 00:00:00 | B10: =+Mileage!B13 -> 00:00:00 | C10: =+Mileage!C13 -> 0 | D10: =+Mileage!D13 -> 0 | F10: =+Mileage!E13 -> 0 | H10: =+Mileage!F13 -> 0 | J10: =+Mileage!G13 -> 0 | K10: 0 | N10: =+Mileage!J13 -> 0
A11: =+Mileage!A14 -> 00:00:00 | B11: =+Mileage!B14 -> 00:00:00 | C11: =+Mileage!C14 -> 0 | D11: =+Mileage!D14 -> 0 | F11: =+Mileage!E14 -> 0 | H11: =+Mileage!F14 -> 0 | J11: =+Mileage!G14 -> 0 | K11: 0 | N11: =+Mileage!J14 -> 0
A12: =+Mileage!A15 -> 00:00:00 | B12: =+Mileage!B15 -> 00:00:00 | C12: =+Mileage!C15 -> 0 | D12: =+Mileage!D15 -> 0 | F12: =+Mileage!E15 -> 0 | H12: =+Mileage!F15 -> 0 | J12: =+Mileage!G15 -> 0 | K12: 0 | N12: =+Mileage!J15 -> 0
A13: =+Mileage!A16 -> 00:00:00 | B13: =+Mileage!B16 -> 00:00:00 | C13: =+Mileage!C16 -> 0 | D13: =+Mileage!D16 -> 0 | F13: =+Mileage!E16 -> 0 | H13: =+Mileage!F16 -> 0 | J13: =+Mileage!G16 -> 0 | K13: 0 | N13: =+Mileage!J16 -> 0
A14: =+Mileage!A17 -> 00:00:00 | B14: =+Mileage!B17 -> 00:00:00 | C14: =+Mileage!C17 -> 0 | D14: =+Mileage!D17 -> 0 | F14: =+Mileage!E17 -> 0 | H14: =+Mileage!F17 -> 0 | J14: =+Mileage!G17 -> 0 | K14: 0 | N14: =+Mileage!J17 -> 0
A15: =+Mileage!A18 -> 00:00:00 | B15: =+Mileage!B18 -> 00:00:00 | C15: =+Mileage!C18 -> 0 | D15: =+Mileage!D18 -> 0 | F15: =+Mileage!E18 -> 0 | H15: =+Mileage!F18 -> 0 | J15: =+Mileage!G18 -> 0 | K15: 0 | N15: =+Mileage!J18 -> 0
A16: =+Mileage!A19 -> 00:00:00 | B16: =+Mileage!B19 -> 00:00:00 | C16: =+Mileage!C19 -> 0 | D16: =+Mileage!D19 -> 0 | F16: =+Mileage!E19 -> 0 | H16: =+Mileage!F19 -> 0 | J16: =+Mileage!G19 -> 0 | K16: 0 | N16: =+Mileage!J19 -> 0
A17: =+Mileage!A20 -> 00:00:00 | B17: =+Mileage!B20 -> 00:00:00 | C17: =+Mileage!C20 -> 0 | D17: =+Mileage!D20 -> 0 | F17: =+Mileage!E20 -> 0 | H17: =+Mileage!F20 -> 0 | J17: =+Mileage!G20 -> 0 | K17: 0 | N17: =+Mileage!J20 -> 0
A18: =+Mileage!A21 -> 00:00:00 | B18: =+Mileage!B21 -> 00:00:00 | C18: =+Mileage!C21 -> 0 | D18: =+Mileage!D21 -> 0 | F18: =+Mileage!E21 -> 0 | H18: =+Mileage!F21 -> 0 | J18: =+Mileage!G21 -> 0 | K18: 0 | N18: =+Mileage!J21 -> 0
A19: =+Mileage!A22 -> 00:00:00 | B19: =+Mileage!B22 -> 00:00:00 | C19: =+Mileage!C22 -> 0 | D19: =+Mileage!D22 -> 0 | F19: =+Mileage!E22 -> 0 | H19: =+Mileage!F22 -> 0 | J19: =+Mileage!G22 -> 0 | K19: 0 | N19: =+Mileage!J22 -> 0
A20: =+Mileage!$A$23 -> 00:00:00 | B20: =+Mileage!$B$23 -> 00:00:00 | C20: =+Mileage!$C$23 -> 0 | D20: =+Mileage!$D$23 -> 0 | F20: =+Mileage!$E$23 -> 0 | H20: =+Mileage!$F$23 -> 0 | J20: =+Mileage!$G$23 -> 0 | K20: =+H20-$J$20 -> 0 | N20: =+Mileage!J23 -> 0
A22: INSTRUCTIONS TO CLAIMANTS | E22: REMARKS: | J22: TOTAL MILEAGE | K22: =SUM(K3:L21) -> 0
F23: =IF(COUNT('misc. entries'!D3:D20)>0,"See Attached Breakdown","") -> 
J24: JL Key 1 | K24: =(SUMIF(N3:N20,"1",K3:L20)*0.535)+(SUMIF(Extension!N3:N31,"1",Extension!K3:L31)*0.535) -> 0
J25: JL Key 2 | K25: =(SUMIF(N3:N20,"2",K3:L20)*0.535)+(SUMIF(Extension!N3:N31,"2",Extension!K3:L31)*0.535) -> 0
F27: Total Mileage | G27: =+K22+Extension!K34 -> 0 | H27: X | I27: 0.535 | J27: per mile = | K27: =+G27*I27 -> 0
A29: CERTIFICATION OF SIGNERS | H29: TOTAL CLAIM FOR MILEAGE | K29: =+K27 -> 0 | O29: =+K29 -> 0
A30: By signing the claim on the reverse side of this document, the signators in their respective capacities agree to the following statements:
A31: CLAIMANT
A32: The claimant, under penalty of perjury states: That the items on the reverse side and the items as therein set out are true and correct; that no part thereof has been heretofore paid, and that the amount therein is justly due,
A33: and that the claim is presented within one year after the last item thereof has accrued. (Note: Signature required)
A35: DEPARTMENT HEAD
A36: I hereby certify, under penalty of perjury, and upon my own personal knowledge that the articles or services specified on this claim for payment and/or as shown on any attached invoice(s) was(were) necessary and was(were)
A37: ordered by me for use by the department and for the purpose indicated above, that the item(s) billed has been delivered, or services performed of contracted for, except as otherwise indicated in remarks above, that no
A38: part thereof has been previously paid, and that I have not violated any of the provisions of Art.4, Title 1, Div. 4, of the Government Code of th4e State of California.
A40: AUDITOR CONTROLLER
A41: I hereby certify that I have examined the facts of the transaction herein set forth as evidenced by the documents attached thereto, or to the original purchase order or contract. All verifications, certifications, and checking of
A42: computations required by county and government codes are in compliance and this claim in the total amount shown is hereby approved for payment.
A44: AUD-26 BACK FOR FAMIS 4.2 (white)(rev JP 12.2.15)
A45: S:\FISCALSHR\Travel\Travel Claim Form.xls\Form Back

Sheet Extension
H1: ODOMETER | K1: MILES CLAIMED
A2: DATE | B2: TIME | C2: ORIGIN | D2: DESTINATION | F2: PURPOSE OF TRIP | H2: END | J2: START | N2: code
A3: =+Mileage!A24 -> 00:00:00 | B3: =+Mileage!B24 -> 00:00:00 | C3: =+Mileage!C24 -> 0 | D3: =+Mileage!D24 -> 0 | F3: =+Mileage!E24 -> 0 | H3: =+Mileage!F24 -> 0 | J3: =+Mileage!G24 -> 0 | K3: =+H3-J3 -> 0 | N3: =+Mileage!J24 -> 0
A4: =+Mileage!A25 -> 00:00:00 | B4: =+Mileage!B25 -> 00:00:00 | C4: =+Mileage!C25 -> 0 | D4: =+Mileage!D25 -> 0 | F4: =+Mileage!E25 -> 0 | H4: =+Mileage!F25 -> 0 | J4: =+Mileage!G25 -> 0 | K4: =+H4-J4 -> 0 | N4: =+Mileage!J25 -> 0
A5: =+Mileage!A26 -> 00:00:00 | B5: =+Mileage!B26 -> 00:00:00 | C5: =+Mileage!C26 -> 0 | D5: =+Mileage!D26 -> 0 | F5: =+Mileage!E26 -> 0 | H5: =+Mileage!F26 -> 0 | J5: =+Mileage!G26 -> 0 | K5: 0 | N5: =+Mileage!J26 -> 0
A6: =+Mileage!A27 -> 00:00:00 | B6: =+Mileage!B27 -> 00:00:00 | C6: =+Mileage!C27 -> 0 | D6: =+Mileage!D27 -> 0 | F6: =+Mileage!E27 -> 0 | H6: =+Mileage!F27 -> 0 | J6: =+Mileage!G27 -> 0 | K6: 0 | N6: =+Mileage!J27 -> 0
A7: =+Mileage!A28 -> 00:00:00 | B7: =+Mileage!B28 -> 00:00:00 | C7: =+Mileage!C28 -> 0 | D7: =+Mileage!D28 -> 0 | F7: =+Mileage!E28 -> 0 | H7: =+Mileage!F28 -> 0 | J7: =+Mileage!G28 -> 0 | K7: 0 | N7: =+Mileage!J28 -> 0
A8: =+Mileage!A29 -> 00:00:00 | B8: =+Mileage!B29 -> 00:00:00 | C8: =+Mileage!C29 -> 0 | D8: =+Mileage!D29 -> 0 | F8: =+Mileage!E29 -> 0 | H8: =+Mileage!F29 -> 0 | J8: =+Mileage!G29 -> 0 | K8: 0 | N8: =+Mileage!J29 -> 0
A9: =+Mileage!A30 -> 00:00:00 | B9: =+Mileage!B30 -> 00:00:00 | C9: =+Mileage!C30 -> 0 | D9: =+Mileage!D30 -> 0 | F9: =+Mileage!E30 -> 0 | H9: =+Mileage!F30 -> 0 | J9: =+Mileage!G30 -> 0 | K9: 0 | N9: =+Mileage!J30 -> 0
A10: =+Mileage!A31 -> 00:00:00 | B10: =+Mileage!B31 -> 00:00:00 | C10: =+Mileage!C31 -> 0 | D10: =+Mileage!D31 -> 0 | F10: =+Mileage!E31 -> 0 | H10: =+Mileage!F31 -> 0 | J10: =+Mileage!G31 -> 0 | K10: 0 | N10: =+Mileage!J31 -> 0
A11: =+Mileage!A32 -> 00:00:00 | B11: =+Mileage!B32 -> 00:00:00 | C11: =+Mileage!C32 -> 0 | D11: =+Mileage!D32 -> 0 | F11: =+Mileage!E32 -> 0 | H11: =+Mileage!F32 -> 0 | J11: =+Mileage!G32 -> 0 | K11: 0 | N11: =+Mileage!J32 -> 0
A12: =+Mileage!A33 -> 00:00:00 | B12: =+Mileage!B33 -> 00:00:00 | C12: =+Mileage!C33 -> 0 | D12: =+Mileage!D33 -> 0 | F12: =+Mileage!E33 -> 0 | H12: =+Mileage!F33 -> 0 | J12: =+Mileage!G33 -> 0 | K12: 0 | N12: =+Mileage!J33 -> 0
A13: =+Mileage!A34 -> 00:00:00 | B13: =+Mileage!B34 -> 00:00:00 | C13: =+Mileage!C34 -> 0 | D13: =+Mileage!D34 -> 0 | F13: =+Mileage!E34 -> 0 | H13: =+Mileage!F34 -> 0 | J13: =+Mileage!G34 -> 0 | K13: 0 | N13: =+Mileage!J34 -> 0
A14: =+Mileage!A35 -> 00:00:00 | B14: =+Mileage!B35 -> 00:00:00 | C14: =+Mileage!C35 -> 0 | D14: =+Mileage!D35 -> 0 | F14: =+Mileage!E35 -> 0 | H14: =+Mileage!F35 -> 0 | J14: =+Mileage!G35 -> 0 | K14: 0 | N14: =+Mileage!J35 -> 0
A15: =+Mileage!A36 -> 00:00:00 | B15: =+Mileage!B36 -> 00:00:00 | C15: =+Mileage!C36 -> 0 | D15: =+Mileage!D36 -> 0 | F15: =+Mileage!E36 -> 0 | H15: =+Mileage!F36 -> 0 | J15: =+Mileage!G36 -> 0 | K15: 0 | N15: =+Mileage!J36 -> 0
A16: =+Mileage!A37 -> 00:00:00 | B16: =+Mileage!B37 -> 00:00:00 | C16: =+Mileage!C37 -> 0 | D16: =+Mileage!D37 -> 0 | F16: =+Mileage!E37 -> 0 | H16: =+Mileage!F37 -> 0 | J16: =+Mileage!G37 -> 0 | K16: 0 | N16: =+Mileage!J37 -> 0
A17: =+Mileage!A38 -> 00:00:00 | B17: =+Mileage!B38 -> 00:00:00 | C17: =+Mileage!C38 -> 0 | D17: =+Mileage!D38 -> 0 | F17: =+Mileage!E38 -> 0 | H17: =+Mileage!F38 -> 0 | J17: =+Mileage!G38 -> 0 | K17: 0 | N17: =+Mileage!J38 -> 0
A18: =+Mileage!A39 -> 00:00:00 | B18: =+Mileage!B39 -> 00:00:00 | C18: =+Mileage!C39 -> 0 | D18: =+Mileage!D39 -> 0 | F18: =+Mileage!E39 -> 0 | H18: =+Mileage!F39 -> 0 | J18: =+Mileage!G39 -> 0 | K18: 0 | N18: =+Mileage!J39 -> 0
A19: =+Mileage!A40 -> 00:00:00 | B19: =+Mileage!B40 -> 00:00:00 | C19: =+Mileage!C40 -> 0 | D19: =+Mileage!D40 -> 0 | F19: =+Mileage!E40 -> 0 | H19: =+Mileage!F40 -> 0 | J19: =+Mileage!G40 -> 0 | K19: 0 | N19: =+Mileage!J40 -> 0
A20: =+Mileage!A41 -> 00:00:00 | B20: =+Mileage!B41 -> 00:00:00 | C20: =+Mileage!C41 -> 0 | D20: =+Mileage!D41 -> 0 | F20: =+Mileage!E41 -> 0 | H20: =+Mileage!F41 -> 0 | J20: =+Mileage!G41 -> 0 | K20: 0 | N20: =+Mileage!J41 -> 0
A21: =+Mileage!A42 -> 00:00:00 | B21: =+Mileage!B42 -> 00:00:00 | C21: =+Mileage!C42 -> 0 | D21: =+Mileage!D42 -> 0 | F21: =+Mileage!E42 -> 0 | H21: =+Mileage!F42 -> 0 | J21: =+Mileage!G42 -> 0 | K21: 0 | N21: =+Mileage!J42 -> 0
A22: =+Mileage!A43 -> 00:00:00 | B22: =+Mileage!B43 -> 00:00:00 | C22: =+Mileage!C43 -> 0 | D22: =+Mileage!D43 -> 0 | F22: =+Mileage!E43 -> 0 | H22: =+Mileage!F43 -> 0 | J22: =+Mileage!G43 -> 0 | K22: 0 | N22: =+Mileage!J43 -> 0
A23: =+Mileage!A44 -> 00:00:00 | B23: =+Mileage!B44 -> 00:00:00 | C23: =+Mileage!C44 -> 0 | D23: =+Mileage!D44 -> 0 | F23: =+Mileage!E44 -> 0 | H23: =+Mileage!F44 -> 0 | J23: =+Mileage!G44 -> 0 | K23: 0 | N23: =+Mileage!J44 -> 0
A24: =+Mileage!A45 -> 00:00:00 | B24: =+Mileage!B45 -> 00:00:00 | C24: =+Mileage!C45 -> 0 | D24: =+Mileage!D45 -> 0 | F24: =+Mileage!E45 -> 0 | H24: =+Mileage!F45 -> 0 | J24: =+Mileage!G45 -> 0 | K24: 0 | N24: =+Mileage!J45 -> 0
A25: =+Mileage!A46 -> 00:00:00 | B25: =+Mileage!B46 -> 00:00:00 | C25: =+Mileage!C46 -> 0 | D25: =+Mileage!D46 -> 0 | F25: =+Mileage!E46 -> 0 | H25: =+Mileage!F46 -> 0 | J25: =+Mileage!G46 -> 0 | K25: 0 | N25: =+Mileage!J46 -> 0
A26: =+Mileage!A47 -> 00:00:00 | B26: =+Mileage!B47 -> 00:00:00 | C26: =+Mileage!C47 -> 0 | D26: =+Mileage!D47 -> 0 | F26: =+Mileage!E47 -> 0 | H26: =+Mileage!F47 -> 0 | J26: =+Mileage!G47 -> 0 | K26: 0 | N26: =+Mileage!J47 -> 0
A27: =+Mileage!A48 -> 00:00:00 | B27: =+Mileage!B48 -> 00:00:00 | C27: =+Mileage!C48 -> 0 | D27: =+Mileage!D48 -> 0 | F27: =+Mileage!E48 -> 0 | H27: =+Mileage!F48 -> 0 | J27: =+Mileage!G48 -> 0 | K27: 0 | N27: =+Mileage!J48 -> 0
A28: =+Mileage!A49 -> 00:00:00 | B28: =+Mileage!B49 -> 00:00:00 | C28: =+Mileage!C49 -> 0 | D28: =+Mileage!D49 -> 0 | F28: =+Mileage!E49 -> 0 | H28: =+Mileage!F49 -> 0 | J28: =+Mileage!G49 -> 0 | K28: 0 | N28: =+Mileage!J49 -> 0
A29: =+Mileage!A50 -> 00:00:00 | B29: =+Mileage!B50 -> 00:00:00 | C29: =+Mileage!C50 -> 0 | D29: =+Mileage!D50 -> 0 | F29: =+Mileage!E50 -> 0 | H29: =+Mileage!F50 -> 0 | J29: =+Mileage!G50 -> 0 | K29: 0 | N29: =+Mileage!J50 -> 0
A30: =+Mileage!A51 -> 00:00:00 | B30: =+Mileage!B51 -> 00:00:00 | C30: =+Mileage!C51 -> 0 | D30: =+Mileage!D51 -> 0 | F30: =+Mileage!E51 -> 0 | H30: =+Mileage!F51 -> 0 | J30: =+Mileage!G51 -> 0 | K30: 0 | N30: =+Mileage!J51 -> 0
A31: =+Mileage!A52 -> 00:00:00 | B31: =+Mileage!B52 -> 00:00:00 | C31: =+Mileage!C52 -> 0 | D31: =+Mileage!D52 -> 0 | F31: =+Mileage!E52 -> 0 | H31: =+Mileage!F52 -> 0 | J31: =+Mileage!G52 -> 0 | K31: 0 | N31: =+Mileage!J52 -> 0
A34: CLAIM OF | B34: =Header!B3 -> 00:00:00 | F34: PAGE 2 | G34: OF 2 | I34: MILEAGE | K34: =SUM(K3:L31) -> 0
A36: S:\FISCALSHR\Travel\Travel Claim Form.xls\Extension

Sheet In State
A5: CO-CITY | B5: COUNTY | C5: CITY | D5: Tax_Rate | E5: Pre-tax_rate | F5: W/tax_rate | G5: AllMeals | H5: Breakfast | I5: Lunch | J5: Dinner | K5: Incidentals | O5: Day Tot | P5: Breakfast | Q5: Lunch | R5: Dinner | S5: Incidentals
A6: =B6&" -- "&C6 -> -- | D6: 0 | E6: 0 | F6: 0 | G6: 0 | H6: 0 | I6: 0 | J6: 0 | K6: 0 | O6: 31 | P6: 6 | Q6: 6 | R6: 16 | S6: 5
A7: =B7&" -- "&C7 -> Alameda -- Alameda, City | B7: Alameda | C7: Alameda, City | D7: 0.1 | E7: 124 | F7: =+E7+E7*D7 -> 136.4 | G7: 61 | H7: =VLOOKUP($G7,meals,2) -> 10 | I7: =VLOOKUP($G7,meals,3) -> 15 | J7: =VLOOKUP($G7,meals,4) -> 31 | K7: =VLOOKUP($G7,meals,5) -> 5 | O7: 35 | P7: 7 | Q7: 7 | R7: 18 | S7: 5
A8: =B8&" -- "&C8 -> Alameda -- Albany | B8: Alameda | C8: Albany | D8: 0.1 | E8: 124 | F8: =+E8+E8*D8 -> 136.4 | G8: 61 | H8: =VLOOKUP($G8,meals,2) -> 10 | I8: =VLOOKUP($G8,meals,3) -> 15 | J8: =VLOOKUP($G8,meals,4) -> 31 | K8: =VLOOKUP($G8,meals,5) -> 5 | O8: 39 | P8: 7 | Q8: 11 | R8: 18 | S8: 5
A9: Alameda -- Berkeley | B9: Alameda | C9: Berkeley | D9: 0.12 | E9: 124 | F9: 138.88 | G9: 61 | H9: 10 | I9: 15 | J9: 31 | K9: 5 | O9: 43 | P9: 9 | Q9: 9 | R9: 22 | S9: 5
A10: Alameda -- Dublin | B10: Alameda | C10: Dublin | D10: 0.08 | E10: 124 | F10: 133.92 | G10: 61 | H10: 10 | I10: 15 | J10: 31 | K10: 5 | O10: 44 | P10: 8 | Q10: 12 | R10: 21 | S10: 5
A11: Alameda -- Emeryville | B11: Alameda | C11: Emeryville | D11: 0.12 | E11: 124 | F11: 138.88 | G11: 61 | H11: 10 | I11: 15 | J11: 31 | K11: 5 | O11: 46 | P11: 7 | Q11: 11 | R11: 23 | S11: 5
A12: Alameda -- Fremont | B12: Alameda | C12: Fremont | D12: 0.1 | E12: 124 | F12: 136.4 | G12: 61 | H12: 10 | I12: 15 | J12: 31 | K12: 5 | O12: 51 | P12: 8 | Q12: 12 | R12: 26 | S12: 5
A13: Alameda -- Hayward | B13: Alameda | C13: Hayward | D13: 0.085 | E13: 124 | F13: 134.54 | G13: 61 | H13: 10 | I13: 15 | J13: 31 | K13: 5 | O13: 56 | P13: 9 | Q13: 13 | R13: 29 | S13: 5
A14: Alameda -- Livermore | B14: Alameda | C14: Livermore | D14: 0.08 | E14: 124 | F14: 133.92 | G14: 61 | H14: 10 | I14: 15 | J14: 31 | K14: 5 | O14: 61 | P14: 10 | Q14: 15 | R14: 31 | S14: 5
A15: Alameda -- Newark | B15: Alameda | C15: Newark | D15: 0.1 | E15: 124 | F15: 136.4 | G15: 61 | H15: 10 | I15: 15 | J15: 31 | K15: 5 | O15: 66 | P15: 11 | Q15: 16 | R15: 34 | S15: 5
A16: =B16&" -- "&C16 -> Alameda -- Oakland | B16: Alameda | C16: Oakland | D16: 0.14 | E16: 124 | F16: =+E16+E16*D16 -> 141.36 | G16: 61 | H16: 10 | I16: 15 | J16: 31 | K16: 5 | O16: 71 | P16: 12 | Q16: 18 | R16: 36 | S16: 5
A17: Alameda -- Piedmont | B17: Alameda | C17: Piedmont | D17: 0 | E17: 124 | F17: 124 | G17: 61 | H17: 10 | I17: 15 | J17: 31 | K17: 5
A18: =B18&" -- "&C18 -> Alameda -- Pleasanton | B18: Alameda | C18: Pleasanton | D18: 0.08 | E18: 124 | F18: 133.92 | G18: 61 | H18: 10 | I18: 15 | J18: 31 | K18: 5
A19: Alameda -- San Leandro | B19: Alameda | C19: San Leandro | D19: 0.1 | E19: 124 | F19: 136.4 | G19: 61 | H19: 10 | I19: 15 | J19: 31 | K19: 5
A20: Alameda -- Unincorporated | B20: Alameda | C20: Unincorporated | D20: 0.1 | E20: 124 | F20: 136.4 | G20: 61 | H20: 10 | I20: 15 | J20: 31 | K20: 5
A21: Alameda -- Union City | B21: Alameda | C21: Union City | D21: 0.1 | E21: 124 | F21: 136.4 | G21: 61 | H21: 10 | I21: 15 | J21: 31 | K21: 5
A22: Alpine -- Markleeville* | B22: Alpine | C22: Markleeville* | D22: 0.1 | E22: 83 | F22: =+E22+E22*D22 -> 91.3 | G22: 46 | H22: 7 | I22: 11 | J22: 23 | K22: 5
A23: Alpine -- Unincorporated | B23: Alpine | C23: Unincorporated | D23: 0.1 | E23: 83 | F23: =+E23+E23*D23 -> 91.3 | G23: 46 | H23: 7 | I23: 11 | J23: 23 | K23: 5
A24: Amador -- Amador, City | B24: Amador | C24: Amador, City | D24: 0.1 | E24: 83 | F24: 91.3 | G24: 46 | H24: 7 | I24: 11 | J24: 23 | K24: 5
A25: Amador -- Ione | B25: Amador | C25: Ione | D25: 0.06 | E25: 83 | F25: 87.98 | G25: 46 | H25: 7 | I25: 11 | J25: 23 | K25: 5
A26: Amador -- Jackson* | B26: Amador | C26: Jackson* | D26: 0.1 | E26: 83 | F26: 91.3 | G26: 46 | H26: 7 | I26: 11 | J26: 23 | K26: 5
A27: Amador -- Plymouth | B27: Amador | C27: Plymouth | D27: 0.1 | E27: 83 | F27: 91.3 | G27: 46 | H27: 7 | I27: 11 | J27: 23 | K27: 5
A28: Amador -- Sutter Creek | B28: Amador | C28: Sutter Creek | D28: 0.073 | E28: 83 | F28: 89.059 | G28: 46 | H28: 7 | I28: 11 | J28: 23 | K28: 5
A29: Amador -- Unincorporated | B29: Amador | C29: Unincorporated | D29: 0.06 | E29: 83 | F29: 87.98 | G29: 46 | H29: 7 | I29: 11 | J29: 23 | K29: 5
A30: Butte -- Biggs | B30: Butte | C30: Biggs | D30: 0 | E30: 83 | F30: 83 | G30: 46 | H30: 7 | I30: 11 | J30: 23 | K30: 5
A31: Butte -- Chico | B31: Butte | C31: Chico | D31: 0.1 | E31: 83 | F31: 91.3 | G31: 46 | H31: 7 | I31: 11 | J31: 23 | K31: 5
A32: Butte -- Gridley | B32: Butte | C32: Gridley | D32: 0.06 | E32: 83 | F32: 87.98 | G32: 46 | H32: 7 | I32: 11 | J32: 23 | K32: 5
A33: Butte -- Oroville* | B33: Butte | C33: Oroville* | D33: 0.09 | E33: 83 | F33: 90.47 | G33: 46 | H33: 7 | I33: 11 | J33: 23 | K33: 5
A34: Butte -- Paradise | B34: Butte | C34: Paradise | D34: 0.1 | E34: 83 | F34: 91.3 | G34: 46 | H34: 7 | I34: 11 | J34: 23 | K34: 5
A35: Butte -- Unincorporated | B35: Butte | C35: Unincorporated | D35: 0.06 | E35: 83 | F35: 87.98 | G35: 46 | H35: 7 | I35: 11 | J35: 23 | K35: 5
A36: Calaveras -- Angels Camp | B36: Calaveras | C36: Angels Camp | D36: 0.1 | E36: 83 | F36: 91.3 | G36: 46 | H36: 7 | I36: 11 | J36: 23 | K36: 5
A37: Calaveras -- Unincorporated/ and San Andreas | B37: Calaveras | C37: Unincorporated/ and San Andreas | D37: 0.06 | E37: 83 | F37: 87.98 | G37: 46 | H37: 7 | I37: 11 | J37: 23 | K37: 5
A38: Colusa -- Colusa, City * | B38: Colusa | C38: Colusa, City * | D38: 0.08 | E38: 83 | F38: 89.64 | G38: 46 | H38: 7 | I38: 11 | J38: 23 | K38: 5
A39: Colusa -- Unincorporated | B39: Colusa | C39: Unincorporated | D39: 0 | E39: 83 | F39: 83 | G39: 46 | H39: 7 | I39: 11 | J39: 23 | K39: 5
A40: Colusa -- Williams | B40: Colusa | C40: Williams | D40: 0.1 | E40: 83 | F40: 91.3 | G40: 46 | H40: 7 | I40: 11 | J40: 23 | K40: 5
A41: Contra Costa -- Antioch | B41: Contra Costa | C41: Antioch | D41: 0.1 | E41: 122 | F41: 134.2 | G41: 66 | H41: 11 | I41: 16 | J41: 34 | K41: 5
A42: Contra Costa -- Brentwood | B42: Contra Costa | C42: Brentwood | D42: 0.1 | E42: 122 | F42: 134.2 | G42: 66 | H42: 11 | I42: 16 | J42: 34 | K42: 5
A43: Contra Costa -- Clayton | B43: Contra Costa | C43: Clayton | D43: 0.04 | E43: 122 | F43: 126.88 | G43: 66 | H43: 11 | I43: 16 | J43: 34 | K43: 5
A44: Contra Costa -- Concord | B44: Contra Costa | C44: Concord | D44: 0.1 | E44: 122 | F44: 134.2 | G44: 66 | H44: 11 | I44: 16 | J44: 34 | K44: 5
A45: Contra Costa -- Danville | B45: Contra Costa | C45: Danville | D45: 0.065 | E45: 122 | F45: 129.93 | G45: 66 | H45: 11 | I45: 16 | J45: 34 | K45: 5
A46: Contra Costa -- El Cerrito | B46: Contra Costa | C46: El Cerrito | D46: 0.1 | E46: 122 | F46: 134.2 | G46: 66 | H46: 11 | I46: 16 | J46: 34 | K46: 5
A47: Contra Costa -- Hercules | B47: Contra Costa | C47: Hercules | D47: 0 | E47: 122 | F47: 122 | G47: 66 | H47: 11 | I47: 16 | J47: 34 | K47: 5
A48: Contra Costa -- Lafayette | B48: Contra Costa | C48: Lafayette | D48: 0.095 | E48: 122 | F48: 133.59 | G48: 66 | H48: 11 | I48: 16 | J48: 34 | K48: 5
A49: Contra Costa -- Martinez* | B49: Contra Costa | C49: Martinez* | D49: 0.1 | E49: 122 | F49: 134.2 | G49: 66 | H49: 11 | I49: 16 | J49: 34 | K49: 5
A50: Contra Costa -- Moraga | B50: Contra Costa | C50: Moraga | D50: 0 | E50: 122 | F50: 122 | G50: 66 | H50: 11 | I50: 16 | J50: 34 | K50: 5
A51: Contra Costa -- Pinole | B51: Contra Costa | C51: Pinole | D51: 0.1 | E51: 122 | F51: 134.2 | G51: 66 | H51: 11 | I51: 16 | J51: 34 | K51: 5
A52: Contra Costa -- Pittsburg | B52: Contra Costa | C52: Pittsburg | D52: 0.12 | E52: 122 | F52: 136.64 | G52: 66 | H52: 11 | I52: 16 | J52: 34 | K52: 5
A53: Contra Costa -- Pleasant Hill | B53: Contra Costa | C53: Pleasant Hill | D53: 0.1 | E53: 122 | F53: 134.2 | G53: 66 | H53: 11 | I53: 16 | J53: 34 | K53: 5
A54: Contra Costa -- Richmond | B54: Contra Costa | C54: Richmond | D54: 0.1 | E54: 122 | F54: 134.2 | G54: 66 | H54: 11 | I54: 16 | J54: 34 | K54: 5
A55: Contra Costa -- San Pablo | B55: Contra Costa | C55: San Pablo | D55: 0.12 | E55: 122 | F55: 136.64 | G55: 66 | H55: 11 | I55: 16 | J55: 34 | K55: 5
A56: =B56&" -- "&C56 -> Contra Costa -- San Ramon | B56: Contra Costa | C56: San Ramon | D56: 0.073 | E56: 122 | F56: =+E56+E56*D56 -> 130.906 | G56: 66 | H56: 11 | I56: 16 | J56: 34 | K56: 5
A57: Contra Costa -- Unincorporated | B57: Contra Costa | C57: Unincorporated | D57: 0.1 | E57: 122 | F57: 134.2 | G57: 66 | H57: 11 | I57: 16 | J57: 34 | K57: 5
A58: Contra Costa -- Walnut Creek | B58: Contra Costa | C58: Walnut Creek | D58: 0.085 | E58: 122 | F58: 132.37 | G58: 66 | H58: 11 | I58: 16 | J58: 34 | K58: 5
A59: Del Norte -- Crescent City* | B59: Del Norte | C59: Crescent City* | D59: 0.1 | E59: 83 | F59: 91.3 | G59: 46 | H59: 7 | I59: 11 | J59: 23 | K59: 5
A60: Del Norte -- Unincorporated | B60: Del Norte | C60: Unincorporated | D60: 0.08 | E60: 83 | F60: 89.64 | G60: 46 | H60: 7 | I60: 11 | J60: 23 | K60: 5
A61: =B61&" -- "&C61 -> El Dorado -- Placerville* 10/1-11/30 | B61: El Dorado | C61: Placerville* 10/1-11/30 | D61: 0.1 | E61: 114 | F61: 125.4 | G61: 71 | H61: 12 | I61: 18 | J61: 36 | K61: 5
A62: El Dorado -- Placerville* 12/1-3/31 | B62: El Dorado | C62: Placerville* 12/1-3/31 | D62: 0.1 | E62: 114 | F62: 125.4 | G62: 71 | H62: 12 | I62: 18 | J62: 36 | K62: 5
A63: =B63&" -- "&C63 -> El Dorado -- Placerville* 4/1-6/30 | B63: El Dorado | C63: Placerville* 4/1-6/30 | D63: 0.1 | E63: 114 | F63: =+E63+E63*D63 -> 125.4 | G63: 71 | H63: 12 | I63: 18 | J63: 36 | K63: 5
A64: El Dorado -- Placerville* 7/1-9/30 | B64: El Dorado | C64: Placerville* 7/1-9/30 | D64: 0.1 | E64: 114 | F64: 125.4 | G64: 71 | H64: 12 | I64: 18 | J64: 36 | K64: 5
A65: =B65&" -- "&C65 -> El Dorado -- So. Lake Tahoe-10% Older Hotels 10/1-11/30 | B65: El Dorado | C65: So. Lake Tahoe-10% Older Hotels 10/1-11/30 | D65: 0.1 | E65: 114 | F65: 138.6 | G65: 71 | H65: 12 | I65: 18 | J65: 36 | K65: 5
A66: El Dorado -- So. Lake Tahoe-10% Older Hotels 12/1-3/31 | B66: El Dorado | C66: So. Lake Tahoe-10% Older Hotels 12/1-3/31 | D66: 0.1 | E66: 114 | F66: 154 | G66: 71 | H66: 12 | I66: 18 | J66: 36 | K66: 5
A67: =B67&" -- "&C67 -> El Dorado -- So. Lake Tahoe-10% Older Hotels 4/1-6/30 | B67: El Dorado | C67: So. Lake Tahoe-10% Older Hotels 4/1-6/30 | D67: 0.1 | E67: 114 | F67: 130.9 | G67: 71 | H67: 12 | I67: 18 | J67: 36 | K67: 5
A68: El Dorado -- So. Lake Tahoe-10% Older Hotels 7/1-9/30 | B68: El Dorado | C68: So. Lake Tahoe-10% Older Hotels 7/1-9/30 | D68: 0.1 | E68: 114 | F68: 138.6 | G68: 71 | H68: 12 | I68: 18 | J68: 36 | K68: 5
A69: =B69&" -- "&C69 -> El Dorado -- Unincorporated 10/1-11/30 | B69: El Dorado | C69: Unincorporated 10/1-11/30 | D69: 0.1 | E69: 114 | F69: 125.4 | G69: 71 | H69: 12 | I69: 18 | J69: 36 | K69: 5
A70: El Dorado -- Unincorporated 12/1-3/31 | B70: El Dorado | C70: Unincorporated 12/1-3/31 | D70: 0.1 | E70: 114 | F70: 125.4 | G70: 71 | H70: 12 | I70: 18 | J70: 36 | K70: 5
A71: =B71&" -- "&C71 -> El Dorado -- Unincorporated 4/1-6/30 | B71: El Dorado | C71: Unincorporated 4/1-6/30 | D71: 0.1 | E71: 114 | F71: =+E71+E71*D71 -> 125.4 | G71: 71 | H71: 12 | I71: 18 | J71: 36 | K71: 5
A72: El Dorado -- Unincorporated 7/1-9/30 | B72: El Dorado | C72: Unincorporated 7/1-9/30 | D72: 0.1 | E72: 114 | F72: 125.4 | G72: 71 | H72: 12 | I72: 18 | J72: 36 | K72: 5
A73: Fresno -- Clovis | B73: Fresno | C73: Clovis | D73: 0.1 | E73: 89 | F73: 97.9 | G73: 61 | H73: 10 | I73: 15 | J73: 31 | K73: 5
A74: Fresno -- Coalinga | B74: Fresno | C74: Coalinga | D74: 0.06 | E74: 89 | F74: 94.34 | G74: 61 | H74: 10 | I74: 15 | J74: 31 | K74: 5
A75: Fresno -- Firebaugh | B75: Fresno | C75: Firebaugh | D75: 0.04 | E75: 89 | F75: 92.56 | G75: 61 | H75: 10 | I75: 15 | J75: 31 | K75: 5
A76: Fresno -- Fowler | B76: Fresno | C76: Fowler | D76: 0 | E76: 89 | F76: 89 | G76: 61 | H76: =VLOOKUP($G76,meals,2) -> 10 | I76: =VLOOKUP($G76,meals,3) -> 15 | J76: =VLOOKUP($G76,meals,4) -> 31 | K76: =VLOOKUP($G76,meals,5) -> 5
A77: Fresno -- Fresno, City* | B77: Fresno | C77: Fresno, City* | D77: 0.12 | E77: 89 | F77: 99.68 | G77: 61 | H77: 10 | I77: 15 | J77: 31 | K77: 5
A78: =B78&" -- "&C78 -> Fresno -- Huron | B78: Fresno | C78: Huron | D78: 0.07 | E78: 89 | F78: 95.23 | G78: 61 | H78: 10 | I78: 15 | J78: 31 | K78: 5
A79: Fresno -- Kerman | B79: Fresno | C79: Kerman | D79: 0 | E79: 89 | F79: 89 | G79: 61 | H79: 10 | I79: 15 | J79: 31 | K79: 5
A80: Fresno -- Kingsburg | B80: Fresno | C80: Kingsburg | D80: 0.12 | E80: 89 | F80: 99.68 | G80: 61 | H80: 10 | I80: 15 | J80: 31 | K80: 5
A81: Fresno -- Mendota | B81: Fresno | C81: Mendota | D81: 0 | E81: 89 | F81: 89 | G81: 61 | H81: 10 | I81: 15 | J81: 31 | K81: 5
A82: Fresno -- Orange Cove | B82: Fresno | C82: Orange Cove | D82: 0 | E82: 89 | F82: 89 | G82: 61 | H82: 10 | I82: 15 | J82: 31 | K82: 5
A83: Fresno -- Parlier | B83: Fresno | C83: Parlier | D83: 0 | E83: 89 | F83: 89 | G83: 61 | H83: 10 | I83: 15 | J83: 31 | K83: 5
A84: Fresno -- Reedley | B84: Fresno | C84: Reedley | D84: 0.08 | E84: 89 | F84: 96.12 | G84: 61 | H84: 10 | I84: 15 | J84: 31 | K84: 5
A85: =B85&" -- "&C85 -> Fresno -- Sanger | B85: Fresno | C85: Sanger | D85: 0.04 | E85: 89 | F85: =+E85+E85*D85 -> 92.56 | G85: 61 | H85: =VLOOKUP($G85,meals,2) -> 10 | I85: =VLOOKUP($G85,meals,3) -> 15 | J85: =VLOOKUP($G85,meals,4) -> 31 | K85: =VLOOKUP($G85,meals,5) -> 5
A86: =B86&" -- "&C86 -> Fresno -- San Joaquin | B86: Fresno | C86: San Joaquin | D86: 0 | E86: 89 | F86: =+E86+E86*D86 -> 89 | G86: 61 | H86: =VLOOKUP($G86,meals,2) -> 10 | I86: =VLOOKUP($G86,meals,3) -> 15 | J86: =VLOOKUP($G86,meals,4) -> 31 | K86: =VLOOKUP($G86,meals,5) -> 5
A87: Fresno -- Selma | B87: Fresno | C87: Selma | D87: 0.06 | E87: 89 | F87: =+E87+E87*D87 -> 94.34 | G87: 61 | H87: 10 | I87: 15 | J87: 31 | K87: 5
A88: Fresno -- Unincorporated | B88: Fresno | C88: Unincorporated | D88: 0 | E88: 89 | F88: 89 | G88: 61 | H88: 10 | I88: 15 | J88: 31 | K88: 5
A89: Glenn -- Orland | B89: Glenn | C89: Orland | D89: 0.1 | E89: 83 | F89: 91.3 | G89: 46 | H89: 7 | I89: 11 | J89: 23 | K89: 5
A90: Glenn -- Unincorporated | B90: Glenn | C90: Unincorporated | D90: 0.05 | E90: 83 | F90: 87.15 | G90: 46 | H90: 7 | I90: 11 | J90: 23 | K90: 5
A91: Glenn -- Willows* | B91: Glenn | C91: Willows* | D91: 0.12 | E91: 83 | F91: 92.96 | G91: 46 | H91: 7 | I91: 11 | J91: 23 | K91: 5
A92: Humbolt -- Arcata 9/1-6/30 | B92: Humbolt | C92: Arcata 9/1-6/30 | D92: 0.1 | E92: 91 | F92: 100.1 | G92: 61 | H92: 10 | I92: 15 | J92: 31 | K92: 5
A93: Humbolt -- Arcata 7/1-8/31 | B93: Humbolt | C93: Arcata 7/1-8/31 | D93: 0.1 | E93: 109 | F93: 119.9 | G93: 61 | H93: 10 | I93: 15 | J93: 31 | K93: 5
A94: Humbolt -- Blue Lake 9/1-6/30 | B94: Humbolt | C94: Blue Lake 9/1-6/30 | D94: 0 | E94: 91 | F94: 91 | G94: 61 | H94: 10 | I94: 15 | J94: 31 | K94: 5
A95: Humbolt -- Blue Lake 7/1-8/31 | B95: Humbolt | C95: Blue Lake 7/1-8/31 | D95: 0 | E95: 109 | F95: 109 | G95: 61 | H95: 10 | I95: 15 | J95: 31 | K95: 5
A96: Humbolt -- Eureka* 9/1-6/30 | B96: Humbolt | C96: Eureka* 9/1-6/30 | D96: 0.1 | E96: 91 | F96: 100.1 | G96: 61 | H96: 10 | I96: 15 | J96: 31 | K96: 5
A97: Humbolt -- Eureka* 7/1-8/31 | B97: Humbolt | C97: Eureka* 7/1-8/31 | D97: 0.1 | E97: 109 | F97: 119.9 | G97: 61 | H97: 10 | I97: 15 | J97: 31 | K97: 5
A98: Humbolt -- Ferndale 9/1-6/30 | B98: Humbolt | C98: Ferndale 9/1-6/30 | D98: 0.08 | E98: 91 | F98: 98.28 | G98: 61 | H98: 10 | I98: 15 | J98: 31 | K98: 5
A99: Humbolt -- Ferndale 7/1-8/31 | B99: Humbolt | C99: Ferndale 7/1-8/31 | D99: 0.08 | E99: 109 | F99: 117.72 | G99: 61 | H99: 10 | I99: 15 | J99: 31 | K99: 5
A100: Humbolt -- Fortuna 9/1-6/30 | B100: Humbolt | C100: Fortuna 9/1-6/30 | D100: 0.1 | E100: 91 | F100: 100.1 | G100: 61 | H100: 10 | I100: 15 | J100: 31 | K100: 5
A101: Humbolt -- Fortuna 7/1-8/31 | B101: Humbolt | C101: Fortuna 7/1-8/31 | D101: 0.1 | E101: 109 | F101: 119.9 | G101: 61 | H101: 10 | I101: 15 | J101: 31 | K101: 5
A102: Humbolt -- Rio Dell 9/1-6/30 | B102: Humbolt | C102: Rio Dell 9/1-6/30 | D102: 0.08 | E102: 91 | F102: 98.28 | G102: 61 | H102: 10 | I102: 15 | J102: 31 | K102: 5
A103: Humbolt -- Rio Dell 7/1-8/31 | B103: Humbolt | C103: Rio Dell 7/1-8/31 | D103: 0.08 | E103: 109 | F103: 117.72 | G103: 61 | H103: 10 | I103: 15 | J103: 31 | K103: 5
A104: Humbolt -- Trinidad 9/1-6/30 | B104: Humbolt | C104: Trinidad 9/1-6/30 | D104: 0.08 | E104: 91 | F104: 98.28 | G104: 61 | H104: 10 | I104: 15 | J104: 31 | K104: 5
A105: Humbolt -- Trinidad 7/1-8/31 | B105: Humbolt | C105: Trinidad 7/1-8/31 | D105: 0.08 | E105: 109 | F105: 117.72 | G105: 61 | H105: 10 | I105: 15 | J105: 31 | K105: 5
A106: Humbolt -- Unincorporated 9/1-6/30 | B106: Humbolt | C106: Unincorporated 9/1-6/30 | D106: 0.1 | E106: 91 | F106: 100.1 | G106: 61 | H106: 10 | I106: 15 | J106: 31 | K106: 5
A107: Humbolt -- Unincorporated 7/1-8/31 | B107: Humbolt | C107: Unincorporated 7/1-8/31 | D107: 0.1 | E107: 109 | F107: 119.9 | G107: 61 | H107: 10 | I107: 15 | J107: 31 | K107: 5
A108: Imperial -- Brawley | B108: Imperial | C108: Brawley | D108: 0.08 | E108: 83 | F108: 89.64 | G108: 46 | H108: 7 | I108: 11 | J108: 23 | K108: 5
A109: Imperial -- Calexico | B109: Imperial | C109: Calexico | D109: 0.1 | E109: 83 | F109: 91.3 | G109: 46 | H109: 7 | I109: 11 | J109: 23 | K109: 5
A110: Imperial -- Calipatria | B110: Imperial | C110: Calipatria | D110: 0.08 | E110: 83 | F110: 89.64 | G110: 46 | H110: 7 | I110: 11 | J110: 23 | K110: 5
A111: Imperial -- El Centro* | B111: Imperial | C111: El Centro* | D111: 0.1 | E111: 83 | F111: 91.3 | G111: 46 | H111: 7 | I111: 11 | J111: 23 | K111: 5
A112: Imperial -- Holtville | B112: Imperial | C112: Holtville | D112: 0.04 | E112: 83 | F112: 86.32 | G112: 46 | H112: 7 | I112: 11 | J112: 23 | K112: 5
A113: Imperial -- Imperial | B113: Imperial | C113: Imperial | D113: 0.08 | E113: 83 | F113: 89.64 | G113: 46 | H113: 7 | I113: 11 | J113: 23 | K113: 5
A114: Imperial -- Unincorporated | B114: Imperial | C114: Unincorporated | D114: 0.08 | E114: 83 | F114: 89.64 | G114: 46 | H114: 7 | I114: 11 | J114: 23 | K114: 5
A115: Imperial -- Westmoreland | B115: Imperial | C115: Westmoreland | D115: 0.1 | E115: 83 | F115: 91.3 | G115: 46 | H115: 7 | I115: 11 | J115: 23 | K115: 5
A116: Inyo -- Bishop | B116: Inyo | C116: Bishop | D116: 0.12 | E116: 100 | F116: =+E116+E116*D116 -> 112 | G116: 46 | H116: 7 | I116: 11 | J116: 23 | K116: 5
A117: Inyo -- Death Valley * Independence | B117: Inyo | C117: Death Valley * Independence | D117: 0.12 | E117: 100 | F117: =+E117+E117*D116 -> 112 | G117: 46 | H117: 7 | I117: 11 | J117: 23 | K117: 5
A118: Inyo -- Unincorporated | B118: Inyo | C118: Unincorporated | D118: 0.12 | E118: 100 | F118: =+E118+E118*D117 -> 112 | G118: 46 | H118: 7 | I118: 11 | J118: 23 | K118: 5
A119: Kern -- Arvin | B119: Kern | C119: Arvin | D119: 0.1 | E119: 92 | F119: =+E119+E119*D119 -> 101.2 | G119: 51 | H119: 8 | I119: 12 | J119: 26 | K119: 5
A120: Kern -- Bakersfield | B120: Kern | C120: Bakersfield | D120: 0.12 | E120: 92 | F120: 103.04 | G120: 51 | H120: 8 | I120: 12 | J120: 26 | K120: 5
A121: Kern -- California City | B121: Kern | C121: California City | D121: 0.08 | E121: 92 | F121: 99.36 | G121: 51 | H121: 8 | I121: 12 | J121: 26 | K121: 5
A122: Kern -- Delano | B122: Kern | C122: Delano | D122: 0.1 | E122: 92 | F122: 101.2 | G122: 51 | H122: 8 | I122: 12 | J122: 26 | K122: 5
A123: Kern -- Maricopa | B123: Kern | C123: Maricopa | D123: 0.1 | E123: 92 | F123: 101.2 | G123: 51 | H123: 8 | I123: 12 | J123: 26 | K123: 5
A124: Kern -- McFarland | B124: Kern | C124: McFarland | D124: 0.06 | E124: 92 | F124: 97.52 | G124: 51 | H124: 8 | I124: 12 | J124: 26 | K124: 5
A125: Kern -- Ridgecrest | B125: Kern | C125: Ridgecrest | D125: 0.1 | E125: 92 | F125: 101.2 | G125: 51 | H125: 8 | I125: 12 | J125: 26 | K125: 5
A126: Kern -- Shaffer | B126: Kern | C126: Shaffer | D126: 0 | E126: 92 | F126: 92 | G126: 51 | H126: 8 | I126: 12 | J126: 26 | K126: 5
A127: Kern -- Taft | B127: Kern | C127: Taft | D127: 0.1 | E127: 92 | F127: 101.2 | G127: 51 | H127: 8 | I127: 12 | J127: 26 | K127: 5
A128: Kern -- Tehachapi | B128: Kern | C128: Tehachapi | D128: 0.08 | E128: 92 | F128: 99.36 | G128: 51 | H128: 8 | I128: 12 | J128: 26 | K128: 5
A129: Kern -- Unincorporated | B129: Kern | C129: Unincorporated | D129: 0.06 | E129: 92 | F129: =+E129+E129*D128 -> 99.36 | G129: 51 | H129: 8 | I129: 12 | J129: 26 | K129: 5
A130: Kern -- Wasco | B130: Kern | C130: Wasco | D130: 0.06 | E130: 92 | F130: =+E130+E130*D130 -> 97.52 | G130: 51 | H130: 8 | I130: 12 | J130: 26 | K130: 5
A131: Kings -- Avenal | B131: Kings | C131: Avenal | D131: 0.06 | E131: 88 | F131: 93.28 | G131: 61 | H131: 10 | I131: 15 | J131: 31 | K131: 5
A132: Kings -- Corcoran | B132: Kings | C132: Corcoran | D132: 0.08 | E132: 88 | F132: 95.04 | G132: 61 | H132: 10 | I132: 15 | J132: 31 | K132: 5
A133: Kings -- Hanford* | B133: Kings | C133: Hanford* | D133: 0.08 | E133: 88 | F133: 95.04 | G133: 61 | H133: 10 | I133: 15 | J133: 31 | K133: 5
A134: Kings -- Lemoore | B134: Kings | C134: Lemoore | D134: 0.08 | E134: 88 | F134: 95.04 | G134: 61 | H134: 10 | I134: 15 | J134: 31 | K134: 5
A135: Kings -- Unincorporated | B135: Kings | C135: Unincorporated | D135: 0.1 | E135: 88 | F135: 96.8 | G135: 61 | H135: 10 | I135: 15 | J135: 31 | K135: 5
A136: Lake -- Clearlake | B136: Lake | C136: Clearlake | D136: 0.09 | E136: 83 | F136: 90.47 | G136: 46 | H136: 7 | I136: 11 | J136: 23 | K136: 5
A137: Lake -- Lakeport* | B137: Lake | C137: Lakeport* | D137: 0.1 | E137: 83 | F137: 91.3 | G137: 46 | H137: 7 | I137: 11 | J137: 23 | K137: 5
A138: Lake -- Unincorporated | B138: Lake | C138: Unincorporated | D138: 0.09 | E138: 83 | F138: 90.47 | G138: 46 | H138: =VLOOKUP($G138,meals,2) -> 7 | I138: =VLOOKUP($G138,meals,3) -> 11 | J138: =VLOOKUP($G138,meals,4) -> 23 | K138: =VLOOKUP($G138,meals,5) -> 5
A139: Lassen -- Susanville* | B139: Lassen | C139: Susanville* | D139: 0.1 | E139: 83 | F139: 91.3 | G139: 46 | H139: 7 | I139: 11 | J139: 23 | K139: 5
A140: Lassen -- Unincorporated | B140: Lassen | C140: Unincorporated | D140: 0.1 | E140: 83 | F140: 91.3 | G140: 46 | H140: 7 | I140: 11 | J140: 23 | K140: 5
A141: Los Angeles -- Agoura Hills | B141: Los Angeles | C141: Agoura Hills | D141: 0.12 | E141: 138 | F141: 154.56 | G141: 71 | H141: 12 | I141: 18 | J141: 36 | K141: 5
A142: =B142&" -- "&C142 -> Los Angeles -- Alhambra | B142: Los Angeles | C142: Alhambra | D142: 0.12 | E142: 138 | F142: 154.56 | G142: 71 | H142: 12 | I142: 18 | J142: 36 | K142: 5
A143: Los Angeles -- Arcadia | B143: Los Angeles | C143: Arcadia | D143: 0.1 | E143: 138 | F143: 151.8 | G143: 71 | H143: 12 | I143: 18 | J143: 36 | K143: 5
A144: Los Angeles -- Artesia | B144: Los Angeles | C144: Artesia | D144: 0.125 | E144: 138 | F144: 155.25 | G144: 71 | H144: 12 | I144: 18 | J144: 36 | K144: 5
A145: Los Angeles -- Avalon | B145: Los Angeles | C145: Avalon | D145: 0.12 | E145: 138 | F145: 154.56 | G145: 71 | H145: 12 | I145: 18 | J145: 36 | K145: 5
A146: Los Angeles -- Azusa | B146: Los Angeles | C146: Azusa | D146: 0.075 | E146: 138 | F146: 148.35 | G146: 71 | H146: 12 | I146: 18 | J146: 36 | K146: 5
A147: Los Angeles -- Baldwin Park | B147: Los Angeles | C147: Baldwin Park | D147: 0.1 | E147: 138 | F147: 151.8 | G147: 71 | H147: 12 | I147: 18 | J147: 36 | K147: 5
A148: Los Angeles -- Bell | B148: Los Angeles | C148: Bell | D148: 0.035 | E148: 138 | F148: 142.83 | G148: 71 | H148: 12 | I148: 18 | J148: 36 | K148: 5
A149: Los Angeles -- Bell Gardens | B149: Los Angeles | C149: Bell Gardens | D149: 0.08 | E149: 138 | F149: 149.04 | G149: 71 | H149: 12 | I149: 18 | J149: 36 | K149: 5
A150: Los Angeles -- Bellflower | B150: Los Angeles | C150: Bellflower | D150: 0.09 | E150: 138 | F150: 150.42 | G150: 71 | H150: 12 | I150: 18 | J150: 36 | K150: 5
A151: Los Angeles -- Beverly Hills | B151: Los Angeles | C151: Beverly Hills | D151: 0.14 | E151: 138 | F151: 157.32 | G151: 71 | H151: 12 | I151: 18 | J151: 36 | K151: 5
A152: Los Angeles -- Bradbury | B152: Los Angeles | C152: Bradbury | D152: 0 | E152: 138 | F152: 138 | G152: 71 | H152: 12 | I152: 18 | J152: 36 | K152: 5
A153: Los Angeles -- Burbank | B153: Los Angeles | C153: Burbank | D153: 0.1 | E153: 138 | F153: 151.8 | G153: 71 | H153: 12 | I153: 18 | J153: 36 | K153: 5
A154: Los Angeles -- Calabasas | B154: Los Angeles | C154: Calabasas | D154: 0.12 | E154: 138 | F154: 154.56 | G154: 71 | H154: 12 | I154: 18 | J154: 36 | K154: 5
A155: Los Angeles -- Carson | B155: Los Angeles | C155: Carson | D155: 0.09 | E155: 138 | F155: 150.42 | G155: 71 | H155: 12 | I155: 18 | J155: 36 | K155: 5
A156: Los Angeles -- Cerritos | B156: Los Angeles | C156: Cerritos | D156: 0.06 | E156: 138 | F156: 146.28 | G156: 71 | H156: 12 | I156: 18 | J156: 36 | K156: 5
A157: Los Angeles -- Claremont | B157: Los Angeles | C157: Claremont | D157: 0.1 | E157: 138 | F157: 151.8 | G157: 71 | H157: 12 | I157: 18 | J157: 36 | K157: 5
A158: Los Angeles -- Commerce | B158: Los Angeles | C158: Commerce | D158: 0.12 | E158: 138 | F158: 154.56 | G158: 71 | H158: 12 | I158: 18 | J158: 36 | K158: 5
A159: Los Angeles -- Compton | B159: Los Angeles | C159: Compton | D159: 0.075 | E159: 138 | F159: 148.35 | G159: 71 | H159: 12 | I159: 18 | J159: 36 | K159: 5
A160: Los Angeles -- Covina | B160: Los Angeles | C160: Covina | D160: 0.1 | E160: 138 | F160: 151.8 | G160: 71 | H160: 12 | I160: 18 | J160: 36 | K160: 5
A161: Los Angeles -- Cudahy | B161: Los Angeles | C161: Cudahy | D161: 0.08 | E161: 138 | F161: 149.04 | G161: 71 | H161: 12 | I161: 18 | J161: 36 | K161: 5
A162: Los Angeles -- Culver City | B162: Los Angeles | C162: Culver City | D162: 0.14 | E162: 138 | F162: 157.32 | G162: 71 | H162: 12 | I162: 18 | J162: 36 | K162: 5
A163: Los Angeles -- Diamond Bar | B163: Los Angeles | C163: Diamond Bar | D163: 0.1 | E163: 138 | F163: 151.8 | G163: 71 | H163: 12 | I163: 18 | J163: 36 | K163: 5
A164: Los Angeles -- Downey | B164: Los Angeles | C164: Downey | D164: 0.09 | E164: 138 | F164: 150.42 | G164: 71 | H164: 12 | I164: 18 | J164: 36 | K164: 5
A165: Los Angeles -- Duarte | B165: Los Angeles | C165: Duarte | D165: 0.1 | E165: 138 | F165: 151.8 | G165: 71 | H165: 12 | I165: 18 | J165: 36 | K165: 5
A166: Los Angeles -- El Monte | B166: Los Angeles | C166: El Monte | D166: 0.1 | E166: 138 | F166: 151.8 | G166: 71 | H166: 12 | I166: 18 | J166: 36 | K166: 5
A167: Los Angeles -- El Segundo | B167: Los Angeles | C167: El Segundo | D167: 0.08 | E167: 138 | F167: 149.04 | G167: 71 | H167: 12 | I167: 18 | J167: 36 | K167: 5
A168: Los Angeles -- Gardena | B168: Los Angeles | C168: Gardena | D168: 0.11 | E168: 138 | F168: 153.18 | G168: 71 | H168: 12 | I168: 18 | J168: 36 | K168: 5
A169: Los Angeles -- Glendale | B169: Los Angeles | C169: Glendale | D169: 0.1 | E169: 138 | F169: 151.8 | G169: 71 | H169: 12 | I169: 18 | J169: 36 | K169: 5
A170: Los Angeles -- Glendora | B170: Los Angeles | C170: Glendora | D170: 0.06 | E170: 138 | F170: 146.28 | G170: 71 | H170: 12 | I170: 18 | J170: 36 | K170: 5
A171: Los Angeles -- Hawaiian Garden | B171: Los Angeles | C171: Hawaiian Garden | D171: 0.09 | E171: 138 | F171: 150.42 | G171: 71 | H171: 12 | I171: 18 | J171: 36 | K171: 5
A172: Los Angeles -- Hawthorne | B172: Los Angeles | C172: Hawthorne | D172: 0.12 | E172: 138 | F172: 154.56 | G172: 71 | H172: 12 | I172: 18 | J172: 36 | K172: 5
A173: Los Angeles -- Hermosa Beach | B173: Los Angeles | C173: Hermosa Beach | D173: 0.1 | E173: 138 | F173: 151.8 | G173: 71 | H173: 12 | I173: 18 | J173: 36 | K173: 5
A174: Los Angeles -- Hidden Hills | B174: Los Angeles | C174: Hidden Hills | D174: 0 | E174: 138 | F174: 138 | G174: 71 | H174: 12 | I174: 18 | J174: 36 | K174: 5
A175: Los Angeles -- Huntington Park | B175: Los Angeles | C175: Huntington Park | D175: 0.05 | E175: 138 | F175: 144.9 | G175: 71 | H175: 12 | I175: 18 | J175: 36 | K175: 5
A176: Los Angeles -- Industry | B176: Los Angeles | C176: Industry | D176: 0.1 | E176: 138 | F176: 151.8 | G176: 71 | H176: 12 | I176: 18 | J176: 36 | K176: 5
A177: Los Angeles -- Inglewood | B177: Los Angeles | C177: Inglewood | D177: 0.14 | E177: 138 | F177: 157.32 | G177: 71 | H177: 12 | I177: 18 | J177: 36 | K177: 5
A178: Los Angeles -- Irwindale | B178: Los Angeles | C178: Irwindale | D178: 0 | E178: 138 | F178: 138 | G178: 71 | H178: 12 | I178: 18 | J178: 36 | K178: 5
A179: Los Angeles -- La Canada Flintridge | B179: Los Angeles | C179: La Canada Flintridge | D179: 0 | E179: 138 | F179: 138 | G179: 71 | H179: 12 | I179: 18 | J179: 36 | K179: 5
A180: Los Angeles -- La Hambra Heights | B180: Los Angeles | C180: La Hambra Heights | D180: 0 | E180: 138 | F180: 138 | G180: 71 | H180: 12 | I180: 18 | J180: 36 | K180: 5
A181: Los Angeles -- La Miranda | B181: Los Angeles | C181: La Miranda | D181: 0.1 | E181: 138 | F181: 151.8 | G181: 71 | H181: 12 | I181: 18 | J181: 36 | K181: 5
A182: Los Angeles -- La Puente | B182: Los Angeles | C182: La Puente | D182: 0.1 | E182: 138 | F182: 151.8 | G182: 71 | H182: 12 | I182: 18 | J182: 36 | K182: 5
A183: Los Angeles -- La Verne | B183: Los Angeles | C183: La Verne | D183: 0.1 | E183: 138 | F183: 151.8 | G183: 71 | H183: 12 | I183: 18 | J183: 36 | K183: 5
A184: Los Angeles -- Lakewood | B184: Los Angeles | C184: Lakewood | D184: 0.08 | E184: 138 | F184: 149.04 | G184: 71 | H184: 12 | I184: 18 | J184: 36 | K184: 5
A185: Los Angeles -- Lancaster | B185: Los Angeles | C185: Lancaster | D185: 0.07 | E185: 138 | F185: 147.66 | G185: 71 | H185: 12 | I185: 18 | J185: 36 | K185: 5
A186: Los Angeles -- Lawndale | B186: Los Angeles | C186: Lawndale | D186: 0.09 | E186: 138 | F186: 150.42 | G186: 71 | H186: 12 | I186: 18 | J186: 36 | K186: 5
A187: Los Angeles -- Lomita | B187: Los Angeles | C187: Lomita | D187: 0.1 | E187: 138 | F187: 151.8 | G187: 71 | H187: 12 | I187: 18 | J187: 36 | K187: 5
A188: Los Angeles -- Long Beach | B188: Los Angeles | C188: Long Beach | D188: 0.12 | E188: 138 | F188: 154.56 | G188: 71 | H188: 12 | I188: 18 | J188: 36 | K188: 5
A189: Los Angeles -- Los Angeles, City* | B189: Los Angeles | C189: Los Angeles, City* | D189: 0.14 | E189: 138 | F189: 157.32 | G189: 71 | H189: 12 | I189: 18 | J189: 36 | K189: 5
A190: Los Angeles -- Lynwood | B190: Los Angeles | C190: Lynwood | D190: 0 | E190: 138 | F190: 138 | G190: 71 | H190: 12 | I190: 18 | J190: 36 | K190: 5
A191: Los Angeles -- Malibu | B191: Los Angeles | C191: Malibu | D191: 0.12 | E191: 138 | F191: 154.56 | G191: 71 | H191: 12 | I191: 18 | J191: 36 | K191: 5
A192: Los Angeles -- Manhatten Beach | B192: Los Angeles | C192: Manhatten Beach | D192: 0.1 | E192: 138 | F192: 151.8 | G192: 71 | H192: 12 | I192: 18 | J192: 36 | K192: 5
A193: Los Angeles -- Maywood | B193: Los Angeles | C193: Maywood | D193: 0.05 | E193: 138 | F193: 144.9 | G193: 71 | H193: 12 | I193: 18 | J193: 36 | K193: 5
A194: Los Angeles -- Monrovia | B194: Los Angeles | C194: Monrovia | D194: 0.1 | E194: 138 | F194: =+E194+E194*D194 -> 151.8 | G194: 71 | H194: 12 | I194: 18 | J194: 36 | K194: 5
A195: Los Angeles -- Montebello | B195: Los Angeles | C195: Montebello | D195: 0.1 | E195: 138 | F195: 151.8 | G195: 71 | H195: 12 | I195: 18 | J195: 36 | K195: 5
A196: Los Angeles -- Monterey Park | B196: Los Angeles | C196: Monterey Park | D196: 0.12 | E196: 138 | F196: 154.56 | G196: 71 | H196: 12 | I196: 18 | J196: 36 | K196: 5
A197: Los Angeles -- Norwalk | B197: Los Angeles | C197: Norwalk | D197: 0.1 | E197: 138 | F197: 151.8 | G197: 71 | H197: 12 | I197: 18 | J197: 36 | K197: 5
A198: Los Angeles -- Palmdale | B198: Los Angeles | C198: Palmdale | D198: 0.1 | E198: 138 | F198: 151.8 | G198: 71 | H198: 12 | I198: 18 | J198: 36 | K198: 5
A199: Los Angeles -- Palos Verdes Estate | B199: Los Angeles | C199: Palos Verdes Estate | D199: 0 | E199: 138 | F199: 138 | G199: 71 | H199: 12 | I199: 18 | J199: 36 | K199: 5
A200: Los Angeles -- Paramount | B200: Los Angeles | C200: Paramount | D200: 0.1 | E200: 138 | F200: 151.8 | G200: 71 | H200: 12 | I200: 18 | J200: 36 | K200: 5
A201: Los Angeles -- Pasadena | B201: Los Angeles | C201: Pasadena | D201: 0.121 | E201: 138 | F201: 154.698 | G201: 71 | H201: =VLOOKUP($G201,meals,2) -> 12 | I201: =VLOOKUP($G201,meals,3) -> 18 | J201: =VLOOKUP($G201,meals,4) -> 36 | K201: =VLOOKUP($G201,meals,5) -> 5
A202: Los Angeles -- Pico Rivera | B202: Los Angeles | C202: Pico Rivera | D202: 0.1 | E202: 138 | F202: 151.8 | G202: 71 | H202: 12 | I202: 18 | J202: 36 | K202: 5
A203: Los Angeles -- Pomona | B203: Los Angeles | C203: Pomona | D203: 0.1 | E203: 138 | F203: 151.8 | G203: 71 | H203: 12 | I203: 18 | J203: 36 | K203: 5
A204: Los Angeles -- Rancho Palos Verdes | B204: Los Angeles | C204: Rancho Palos Verdes | D204: 0.1 | E204: 138 | F204: 151.8 | G204: 71 | H204: 12 | I204: 18 | J204: 36 | K204: 5
... 438 more rows

Sheet Out of State
B1: Note: Out of State rates are not up-to-date. Please check rates at: http://www.gsa.gov/portal/category/100120
B5: State/City | C5: STATE | D5: CITY | E5: Pre-tax_rate | F5: AllMeals | G5: Breakfast | H5: Lunch | I5: Dinner | J5: Incidentals | N5: Day Tot | O5: Breakfast | P5: Lunch | Q5: Dinner | R5: Incidentals
B6: -- | E6: 0 | F6: 0 | G6: 0 | H6: 0 | I6: 0 | J6: 0 | N6: 31 | O6: 6 | P6: 6 | Q6: 16 | R6: 5
B7: ALABAMA -- Conus Rate | C7: Alabama | D7: CONUS | E7: 77 | F7: 46 | G7: =VLOOKUP($F7,$N$6:$R$17,2) -> 7 | H7: =VLOOKUP($F7,$N$6:$R$17,3) -> 11 | I7: =VLOOKUP($F7,$N$6:$R$17,4) -> 23 | J7: =VLOOKUP($F7,$N$6:$R$17,5) -> 5 | K7: =E7+F7 -> 123 | N7: 35 | O7: 7 | P7: 7 | Q7: 18 | R7: 5
B8: Alabama - Baldwin (Gulf Shores) (October 1-May 31) | C8: Alabama | D8: Gulf Shores | E8: 100.02987 | F8: 51 | G8: 8 | H8: 12 | I8: 26 | J8: 5 | K8: =E8+F8 -> 151.02987 | N8: 43 | O8: 9 | P8: 9 | Q8: 22 | R8: 5
B9: Alabama - Baldwin (Gulf Shores) (June 1-July 31) | C9: Alabama | D9: Gulf Shores | E9: 117 | F9: 51 | G9: 8 | H9: 12 | I9: 26 | J9: 5 | K9: 168 | N9: 39 | O9: 7 | P9: 11 | Q9: 18 | R9: 5
B10: Alabama - Baldwin (Gulf Shores) (Aug 1-Sep 30) | C10: Alabama | D10: Gulf Shores | E10: 100 | F10: 51 | G10: 8 | H10: 12 | I10: 26 | J10: 5 | K10: 151 | N10: 39 | O10: 7 | P10: 11 | Q10: 18 | R10: 5
B11: Alabama - Jefferson and Shelby (Birmingham) | C11: Alabama | D11: Birmingham | E11: 86.362125 | F11: 56 | G11: 9 | H11: 13 | I11: 29 | J11: 5 | K11: 142.362125 | N11: 46 | O11: 7 | P11: 11 | Q11: 23 | R11: 5
B12: Alabama - Madison and Limestone (Huntsville) | C12: Alabama | D12: Huntsville | E12: 87 | F12: 51 | G12: 8 | H12: 12 | I12: 26 | J12: 5 | K12: 138 | N12: 47 | O12: 9 | P12: 11 | Q12: 24 | R12: 5
B13: Alabama - Montgomery (Montgomery) | C13: Alabama | D13: Montgomery | E13: 80 | F13: 51 | G13: 8 | H13: 12 | I13: 26 | J13: 5 | K13: 131 | N13: 47 | O13: 9 | P13: 11 | Q13: 24 | R13: 5
B14: ARIZONA -- Conus Rate | C14: Arizona | D14: CONUS | E14: 77 | F14: 46 | G14: 7 | H14: 11 | I14: 23 | J14: 5 | K14: 123 | N14: 49 | O14: 9 | P14: 13 | Q14: 24 | R14: 5
B15: Arizona - City Limits of Sedona (Sedona) (October 1-February 29) | C15: Arizona | D15: Sedona | E15: 127 | F15: 66 | G15: 9 | H15: 13 | I15: 29 | J15: 5 | K15: 193 | N15: 61 | O15: 10 | P15: 15 | Q15: 31 | R15: 5
B16: Arizona - City Limits of Sedona (Sedona) (March 1-April 30) | C16: Arizona | D16: Sedona | E16: 145 | F16: 66 | G16: 9 | H16: 13 | I16: 29 | J16: 5 | K16: 211 | N16: 51 | O16: 8 | P16: 12 | Q16: 26 | R16: 5
B17: Arizona - City Limits of Sedona (Sedona) (May 1-September 30) | C17: Arizona | D17: Sedona | E17: 127 | F17: 66 | G17: 9 | H17: 13 | I17: 29 | J17: 5 | K17: 193 | N17: 56 | O17: 9 | P17: 13 | Q17: 29 | R17: 5
B18: Arizona - Cochise (Sierra Vista) | C18: Arizona | D18: Sierra Vista | E18: 83 | F18: 46 | G18: 7 | H18: 11 | I18: 23 | J18: 5 | K18: 129 | N18: 64 | O18: 12 | P18: 18 | Q18: 31 | R18: 5
B19: Arizona - Coconino (except the city limits of Sedona), Yavapai (Grand Canyon/Flagstaff) (October 1-October 31) | C19: Arizona | D19: Grand Canyon/Flagstaff | E19: 97 | F19: 66 | G19: 9 | H19: 13 | I19: 29 | J19: 5 | K19: 163
B20: Arizona - Coconino (except the city limits of Sedona), Yavapai (Grand Canyon/Flagstaff) (November 1-February 29) | C20: Arizona | D20: Grand Canyon/Flagstaff | E20: 77 | F20: 66 | G20: 9 | H20: 13 | I20: 29 | J20: 5 | K20: 143 | N20: 71 | O20: 12 | P20: 18 | Q20: 36 | R20: 5
B21: Arizona - Coconino (except the city limits of Sedona), Yavapai (Grand Canyon/Flagstaff) (March 1-September 30) | C21: Arizona | D21: Grand Canyon/Flagstaff | E21: 97 | F21: 66 | G21: 9 | H21: 13 | I21: 29 | J21: 5 | K21: 163 | N21: 66 | O21: 11 | P21: 16 | Q21: 34 | R21: 5
B22: Arizona - Maricopa (Phoenix/Scottsdale) (Oct 1-Dec 31) | C22: Arizona | D22: Phoenix/Scottsdale | E22: 105 | F22: 71 | G22: 9 | H22: 13 | I22: 29 | J22: 5 | K22: 176
B23: Arizona - Maricopa (Phoenix/Scottsdale) (Jan 1-May 31) | C23: Arizona | D23: Phoenix/Scottsdale | E23: 128 | F23: 71 | G23: 9 | H23: 13 | I23: 29 | J23: 5 | K23: 199
B24: Arizona - Maricopa (Phoenix/Scottsdale) (Jun 1-Aug 31) | C24: Arizona | D24: Phoenix/Scottsdale | E24: 80 | F24: 71 | G24: 9 | H24: 13 | I24: 29 | J24: 5 | K24: 151
B25: Arizona - Maricopa (Phoenix/Scottsdale) (Sep 1-Sep 30) | C25: Arizona | D25: Phoenix/Scottsdale | E25: 105 | F25: 71 | G25: 9 | H25: 13 | I25: 29 | J25: 5 | K25: 176
B26: Arizona - Navajo (Kayenta ) | C26: Arizona | D26: Kayenta | E26: 79 | F26: 46 | G26: 7 | H26: 11 | I26: 23 | J26: 5 | K26: 125
B27: Arizona - Pima (Tucson) (October 1-January 31) | C27: Arizona | D27: Tucson | E27: 90 | F27: 56 | G27: 9 | H27: 13 | I27: 29 | J27: 5 | K27: 146
B28: Arizona - Pima (Tucson) (February 1-May 31) | C28: Arizona | D28: Tucson | E28: 103 | F28: 56 | G28: 9 | H28: 13 | I28: 29 | J28: 5 | K28: 159
B29: Arizona - Pima (Tucson) (June 1-August 31) | C29: Arizona | D29: Tucson | E29: 77 | F29: 56 | G29: 9 | H29: 13 | I29: 29 | J29: 5 | K29: 133
B30: Arizona - Pima (Tucson) (September 1-September 30) | C30: Arizona | D30: Tucson | E30: 90 | F30: 56 | G30: 9 | H30: 13 | I30: 29 | J30: 5 | K30: 146
B31: Arizona - Yuma (Yuma) (October 1-October 31) | C31: Arizona | D31: Yuma | E31: 78 | F31: 46 | G31: 7 | H31: 11 | I31: 23 | J31: 5 | K31: 124
B32: Arizona - Yuma (Yuma) (November 1-March 31) | C32: Arizona | D32: Yuma | E32: 78 | F32: 46 | G32: 7 | H32: 11 | I32: 23 | J32: 5 | K32: 124
B33: Arizona - Yuma (Yuma) (April 1-September 30) | C33: Arizona | D33: Yuma | E33: 78 | F33: 46 | G33: 7 | H33: 11 | I33: 23 | J33: 5 | K33: 124
B34: ARKANSAS -- Conus Rate | E34: 77 | F34: 46 | G34: 7 | H34: 11 | I34: 23 | J34: 5 | K34: 123
B35: Arkansas - Garland (Hot Springs) | C35: Arkansas | D35: Hot Springs | E35: 101 | F35: 46 | G35: 7 | H35: 11 | I35: 23 | J35: 5 | K35: 147
B36: Arkansas - Pulaski (Little Rock) | C36: Arkansas | D36: Little Rock | E36: 86 | F36: 61 | G36: 9 | H36: 13 | I36: 29 | J36: 5 | K36: 147
B37: COLORADO -- Conus Rate | C37: Colorado | D37: CONUS | E37: 77 | F37: 46 | G37: 7 | H37: 11 | I37: 23 | J37: 5 | K37: 123
B38: Colorado - Boulder and Broomfield (Boulder/Broomfield) | C38: Colorado | D38: Boulder/Broomfield | E38: 98.147255 | F38: 54 | G38: 8 | H38: 12 | I38: 26 | J38: 5 | K38: 152.147255
B39: Colorado - Denver, Adams, Arapahoe, and Jefferson (Denver/Aurora) | C39: Colorado | D39: Denver/Aurora | E39: 140.02715 | F39: 49 | G39: 9 | H39: 13 | I39: 24 | J39: 5 | K39: 189.02715
B40: Colorado - Douglas (Douglas County) | C40: Colorado | D40: Douglas County | E40: 89.645895 | F40: 54 | G40: 8 | H40: 12 | I40: 26 | J40: 5 | K40: 143.645895
B41: Colorado - Eagle (Vail) (April 1-September 30) | C41: Colorado | D41: Vail | E41: 176 | F41: 64 | G41: 9 | H41: 13 | I41: 29 | J41: 5 | K41: 240
B42: Colorado - Eagle (Vail) (December 1-January 31) | C42: Colorado | D42: Vail | E42: 316.668535 | F42: 64 | G42: 9 | H42: 13 | I42: 29 | J42: 5 | K42: 380.668535
B43: Colorado - Eagle (Vail) (February 1-March 31) | C43: Colorado | D43: Vail | E43: 252 | F43: 64 | G43: 9 | H43: 13 | I43: 29 | J43: 5 | K43: 316
B44: Colorado - Eagle (Vail) (October 1-November 30) | C44: Colorado | D44: Vail | E44: 176 | F44: 64 | G44: 9 | H44: 13 | I44: 29 | J44: 5 | K44: 240
B45: Colorado - El Paso (Colorado Springs) | C45: Colorado | D45: Colorado Springs | E45: 83.494645 | F45: 44 | G45: 7 | H45: 11 | I45: 18 | J45: 5 | K45: 127.494645
B46: Colorado - Garfield/Mesa (Glenwood Springs/Grand Junction) | C46: Colorado | D46: Glenwood Springs/Grand Junction | E46: 80.91834 | F46: 49 | G46: 9 | H46: 13 | I46: 24 | J46: 5 | K46: 129.91834
B47: Colorado - Gunnison (Crested Butte/Gunnison) (April 1-August 31) | C47: Colorado | D47: Crested Butte/Gunnison | E47: 93.85278 | F47: 49 | G47: 9 | H47: 13 | I47: 24 | J47: 5 | K47: 142.85278
B48: Colorado - Gunnison (Crested Butte/Gunnison) (December 1-March 31) | C48: Colorado | D48: Crested Butte/Gunnison | E48: 236.511905 | F48: 49 | G48: 9 | H48: 13 | I48: 24 | J48: 5 | K48: 285.511905
B49: Colorado - Gunnison (Crested Butte/Gunnison) (October 1-November 30) | C49: Colorado | D49: Crested Butte/Gunnison | E49: 76.16131 | F49: 49 | G49: 9 | H49: 13 | I49: 24 | J49: 5 | K49: 125.16131
B50: Colorado - Gunnison (Crested Butte/Gunnison) (September 1-September 30) | C50: Colorado | D50: Crested Butte/Gunnison | E50: 76.16131 | F50: 49 | G50: 9 | H50: 13 | I50: 24 | J50: 5 | K50: 125.16131
B51: Colorado - La Plata (Durango) (May 1-September 30) | C51: Colorado | D51: Durango | E51: 107.63405 | F51: 49 | G51: 9 | H51: 13 | I51: 24 | J51: 5 | K51: 156.63405
B52: Colorado - La Plata (Durango) (October 1-April 30) | C52: Colorado | D52: Durango | E52: 85.811885 | F52: 49 | G52: 9 | H52: 13 | I52: 24 | J52: 5 | K52: 134.811885
B53: Colorado - Larimer (Fort Collins/Loveland) | C53: Colorado | D53: Fort Collins/Loveland | E53: 85.234 | F53: 44 | G53: 7 | H53: 11 | I53: 18 | J53: 5 | K53: 129.234
B54: Colorado - Montezuma (Cortez) (June 1-August 31) | C54: Colorado | D54: Cortez | E54: 90.234325 | F54: 39 | G54: 7 | H54: 7 | I54: 18 | J54: 5 | K54: 129.234325
B55: Colorado - Montezuma (Cortez) (October 1-May 31) | C55: Colorado | D55: Cortez | E55: 74.848315 | F55: 39 | G55: 7 | H55: 7 | I55: 18 | J55: 5 | K55: 113.848315
B56: Colorado - Montezuma (Cortez) (September 1-September 30) | C56: Colorado | D56: Cortez | E56: 74.848315 | F56: 39 | G56: 7 | H56: 7 | I56: 18 | J56: 5 | K56: 113.848315
B57: Colorado - Montrose (Montrose) (May 1-September 30) | C57: Colorado | D57: Montrose | E57: 79.694455 | F57: 39 | G57: 7 | H57: 7 | I57: 18 | J57: 5 | K57: 118.694455
B58: Colorado - Montrose (Montrose) (October 1-April 30) | C58: Colorado | D58: Montrose | E58: 69.889885 | F58: 39 | G58: 7 | H58: 7 | I58: 18 | J58: 5 | K58: 108.889885
B59: Colorado - Pitkin (Aspen) (October 1-November 30) | C59: Colorado | D59: Aspen | E59: 103.50592 | F59: 71 | G59: 9 | H59: 13 | I59: 29 | J59: 5 | K59: 174.50592
B60: Colorado - Pitkin (Aspen) (December 1-Mar 31) | C60: Colorado | D60: Aspen | E60: 207 | F60: 71 | G60: 9 | H60: 13 | I60: 29 | J60: 5 | K60: 278
B61: Colorado - Pitkin (Aspen) (Apr 1-May 31) | C61: Colorado | D61: Aspen | E61: 111 | F61: 71 | G61: 9 | H61: 13 | I61: 29 | J61: 5 | K61: 182
B62: Colorado - Pitkin (Aspen) (Jun 1-Aug 31) | C62: Colorado | D62: Aspen | E62: 150 | F62: 71 | G62: 9 | H62: 13 | I62: 29 | J62: 5 | K62: 221
B63: Colorado - Pitkin (Aspen) (Sep 1-Sep 30) | C63: Colorado | D63: Aspen | E63: 104 | F63: 71 | G63: 9 | H63: 13 | I63: 29 | J63: 5 | K63: 175
B64: Colorado - Routt (Steamboat Springs) (October 1-November 30) | C64: Colorado | D64: Steamboat Springs | E64: 99 | F64: 56 | G64: 9 | H64: 13 | I64: 29 | J64: 5 | K64: 155
B65: Colorado - Routt (Steamboat Springs) (December 1-Mar 30) | C65: Colorado | D65: Steamboat Springs | E65: 181 | F65: 56 | G65: 9 | H65: 13 | I65: 29 | J65: 5 | K65: 237
B66: Colorado - Routt (Steamboat Springs) (Apr 1-September 30) | C66: Colorado | D66: Steamboat Springs | E66: 99 | F66: 56 | G66: 9 | H66: 13 | I66: 29 | J66: 5 | K66: 155
B67: Colorado - San Miguel (Telluride) (October 1-Nov 30) | C67: Colorado | D67: Telluride | E67: 92 | F67: 71 | G67: 9 | H67: 13 | I67: 29 | J67: 5 | K67: 163
B68: Colorado - San Miguel (Telluride) (Dec 1-March 31) | C68: Colorado | D68: Telluride | E68: 160 | F68: 71 | G68: 9 | H68: 13 | I68: 29 | J68: 5 | K68: 231
B69: Colorado - San Miguel (Telluride) (April 1-May 31) | C69: Colorado | D69: Telluride | E69: 90 | F69: 71 | G69: 9 | H69: 13 | I69: 29 | J69: 5 | K69: 161
B70: Colorado - San Miguel (Telluride) (June 1-September 30) | C70: Colorado | D70: Telluride | E70: 126 | F70: 71 | G70: 9 | H70: 13 | I70: 29 | J70: 5 | K70: 197
B71: Colorado - Summit (Silverthorne/Breckenridge) (October 1-November 30) | C71: Colorado | D71: Silverthorne/Breckenridge | E71: 92 | F71: 56 | G71: =VLOOKUP($F71,$N$6:$R$17,2) -> 9 | H71: =VLOOKUP($F71,$N$6:$R$17,3) -> 13 | I71: =VLOOKUP($F71,$N$6:$R$17,4) -> 29 | J71: =VLOOKUP($F71,$N$6:$R$17,5) -> 5 | K71: 148
B72: Colorado - Summit (Silverthorne/Breckenridge) (December 1-Mar 31) | C72: Colorado | D72: Silverthorne/Breckenridge | E72: 144 | F72: 56 | G72: 9 | H72: 13 | I72: 29 | J72: 5 | K72: =E72+F72 -> 200
B73: Colorado - Summit (Silverthorne/Breckenridge) (April 1-Sep 30) | C73: Colorado | D73: Silverthorne/Breckenridge | E73: 92.428445 | F73: 56 | G73: 9 | H73: 13 | I73: 29 | J73: 5 | K73: 148.428445
B74: CONNECTICUT -- Conus Rate | E74: 77 | F74: 46 | G74: 7 | H74: 11 | I74: 23 | J74: 5 | K74: 123
B75: Connecticut - Fairfield (Bridgeport/Danbury) | C75: Connecticut | D75: Bridgeport/Danbury | E75: 113 | F75: 71 | G75: 9 | H75: 13 | I75: 29 | J75: 5 | K75: 184
B76: Connecticut - Hartford (Hartford) | C76: Connecticut | D76: Hartford | E76: 104 | F76: 56 | G76: 9 | H76: 13 | I76: 29 | J76: 5 | K76: 160
B77: Connecticut - Litchfield (Lakeville/Salisbury) | C77: Connecticut | D77: Lakeville/Salisbury | E77: 95 | F77: 66 | G77: 9 | H77: 13 | I77: 29 | J77: 5 | K77: 161
B78: Connecticut - Middlesex (Cromwell/Old Saybrook) | C78: Connecticut | D78: Cromwell/Old Saybrook | E78: 81 | F78: 61 | G78: 9 | H78: 13 | I78: 29 | J78: 5 | K78: 142
B79: Connecticut - New Haven (New Haven) | C79: Connecticut | D79: New Haven | E79: 87 | F79: 61 | G79: 9 | H79: 13 | I79: 29 | J79: 5 | K79: 148
B80: Connecticut - New London (New London/Groton) | C80: Connecticut | D80: New London/Groton | E80: 97 | F80: 61 | G80: 9 | H80: 13 | I80: 29 | J80: 5 | K80: 158
B81: Connecticut - Windham/Tolland (Putnam/Danielson/Storrs/Mansfield) | C81: Connecticut | D81: Putnam/Danielson/Storrs/Mansfield | E81: 71.33588 | F81: 59 | G81: 9 | H81: 13 | I81: 29 | J81: 5 | K81: 130.33588
B82: DELAWARE -- Conus Rate | C82: Delaware | D82: CONUS | E82: 77 | F82: 46 | G82: 7 | H82: 11 | I82: 23 | J82: 5 | K82: 123
B83: Delaware - Kent (Dover) (October 1-Apr 30) | C83: Delaware | D83: Dover | E83: 77 | F83: 46 | G83: 7 | H83: 11 | I83: 23 | J83: 5 | K83: 123
B84: Delaware - Kent (Dover) (May 1-September 30) | C84: Delaware | D84: Dover | E84: 90 | F84: 46 | G84: 7 | H84: 11 | I84: 23 | J84: 5 | K84: 136
B85: Delaware - New Castle (Wilmington) | C85: Delaware | D85: Wilmington | E85: 114 | F85: 56 | G85: 9 | H85: 13 | I85: 29 | J85: 5 | K85: 170
B86: Delaware - Sussex (Lewes) (October 1-June 30) | C86: Delaware | D86: Lewes | E86: 83 | F86: 46 | G86: 7 | H86: 11 | I86: 23 | J86: 5 | K86: 129
B87: Delaware - Sussex (Lewes) (July 1-August 31) | C87: Delaware | D87: Lewes | E87: 122 | F87: 46 | G87: 7 | H87: 11 | I87: 23 | J87: 5 | K87: 168
B88: Delaware - Sussex (Lewes) (September 1-September 30) | C88: Delaware | D88: Lewes | E88: 83 | F88: 46 | G88: 7 | H88: 11 | I88: 23 | J88: 5 | K88: 129
B89: District of Columbia - CONUS | C89: District of Columbia | D89: District of Columbia | E89: 77 | F89: 46 | G89: 7 | H89: 11 | I89: 23 | J89: 5 | K89: 123
B90: District of Columbia - Washington DC (See also Maryland and Virginia) (District of Columbia) (October 1-October 31) | C90: District of Columbia | D90: District of Columbia | E90: 226 | F90: 71 | G90: 9 | H90: 13 | I90: 29 | J90: 5 | K90: =E90+F90 -> 297
B91: District of Columbia - Washington DC (See also Maryland and Virginia) (District of Columbia) (Nov 1- Feb 28) | C91: District of Columbia | D91: District of Columbia | E91: 183 | F91: 71 | G91: 9 | H91: 13 | I91: 29 | J91: 5 | K91: =E91+F91 -> 254
B92: District of Columbia - Washington DC (See also Maryland and Virginia) (District of Columbia) (Mar 1-Jun 30) | C92: District of Columbia | D92: District of Columbia | E92: 224 | F92: 71 | G92: 9 | H92: 13 | I92: 29 | J92: 5 | K92: 295
B93: District of Columbia - Washington DC (See also Maryland and Virginia) (District of Columbia) (Jul 1-Aug 31) | C93: District of Columbia | D93: District of Columbia | E93: 169 | F93: 71 | G93: 9 | H93: 13 | I93: 29 | J93: 5 | K93: =E93+F93 -> 240
B94: District of Columbia - Washington DC (See also Maryland and Virginia) (District of Columbia) (September 1-September 30) | C94: District of Columbia | D94: District of Columbia | E94: 226 | F94: 71 | G94: 9 | H94: 13 | I94: 29 | J94: 5 | K94: 297
B95: FLORIDA -- Conus Rate | C95: Florida | D95: CONUS | E95: 77 | F95: 46 | G95: 7 | H95: 11 | I95: 23 | J95: 5 | K95: 123
B96: Florida - Alachua (Gainesville) | C96: Florida | D96: Gainesville | E96: 90 | F96: 51 | G96: 8 | H96: 12 | I96: 26 | J96: 5 | K96: 141
B97: Florida - Bay (Panama City) (October 1-February 29) | C97: Florida | D97: Panama City | E97: 79 | F97: 51 | G97: =VLOOKUP($F97,$N$6:$R$17,2) -> 8 | H97: =VLOOKUP($F97,$N$6:$R$17,3) -> 12 | I97: =VLOOKUP($F97,$N$6:$R$17,4) -> 26 | J97: =VLOOKUP($F97,$N$6:$R$17,5) -> 5 | K97: =E97+F97 -> 130
B98: Florida - Bay (Panama City) (March 1-Jul 31) | C98: Florida | D98: Panama City | E98: 103 | F98: 51 | G98: =VLOOKUP($F98,$N$6:$R$17,2) -> 8 | H98: =VLOOKUP($F98,$N$6:$R$17,3) -> 12 | I98: =VLOOKUP($F98,$N$6:$R$17,4) -> 26 | J98: =VLOOKUP($F98,$N$6:$R$17,5) -> 5 | K98: =E98+F98 -> 154
B99: Florida - Bay (Panama City) (Aug 1-Sep 30) | C99: Florida | D99: Panama City | E99: 79 | F99: 51 | G99: 8 | H99: 12 | I99: 26 | J99: 5 | K99: 130
B100: Florida - Brevard (Cocoa Beach) | C100: Florida | D100: Cocoa Beach | E100: 99 | F100: 51 | G100: 8 | H100: 12 | I100: 26 | J100: 5 | K100: 150
B101: Florida - Broward (Fort Lauderdale) (October 1-Dec 31) | C101: Florida | D101: Fort Lauderdale | E101: 124 | F101: 71 | G101: =VLOOKUP($F101,$N$6:$R$17,2) -> 9 | H101: =VLOOKUP($F101,$N$6:$R$17,3) -> 13 | I101: =VLOOKUP($F101,$N$6:$R$17,4) -> 29 | J101: =VLOOKUP($F101,$N$6:$R$17,5) -> 5 | K101: =E101+F101 -> 195
B102: Florida - Broward (Fort Lauderdale) (Jan 1-Mar 31) | C102: Florida | D102: Fort Lauderdale | E102: 164 | F102: 71 | G102: =VLOOKUP($F102,$N$6:$R$17,2) -> 9 | H102: =VLOOKUP($F102,$N$6:$R$17,3) -> 13 | I102: =VLOOKUP($F102,$N$6:$R$17,4) -> 29 | J102: =VLOOKUP($F102,$N$6:$R$17,5) -> 5 | K102: =E102+F102 -> 235
B103: Florida - Broward (Fort Lauderdale) (Apr 1-May 31) | C103: Florida | D103: Fort Lauderdale | E103: 137 | F103: 71 | G103: 9 | H103: 13 | I103: 29 | J103: 5 | K103: 208
B104: Florida - Broward (Fort Lauderdale) (Jun 1-Sep 30) | C104: Florida | D104: Fort Lauderdale | E104: 101 | F104: 71 | G104: 9 | H104: 13 | I104: 29 | J104: 5 | K104: =E104+F104 -> 172
B105: Florida - Charlotte (Punta Gorda) (October 1-January 31) | C105: Florida | D105: Punta Gorda | E105: 77 | F105: 51 | G105: =VLOOKUP($F105,$N$6:$R$17,2) -> 8 | H105: =VLOOKUP($F105,$N$6:$R$17,3) -> 12 | I105: =VLOOKUP($F105,$N$6:$R$17,4) -> 26 | J105: =VLOOKUP($F105,$N$6:$R$17,5) -> 5 | K105: =E105+F105 -> 128
B106: Florida - Charlotte (Punta Gorda) (February 1-March 31) | C106: Florida | D106: Punta Gorda | E106: 85 | F106: 51 | G106: =VLOOKUP($F106,$N$6:$R$17,2) -> 8 | H106: =VLOOKUP($F106,$N$6:$R$17,3) -> 12 | I106: =VLOOKUP($F106,$N$6:$R$17,4) -> 26 | J106: =VLOOKUP($F106,$N$6:$R$17,5) -> 5 | K106: =E106+F106 -> 136
B107: Florida - Charlotte (Punta Gorda) (April 1-September 30) | C107: Florida | D107: Punta Gorda | E107: 77 | F107: 51 | G107: 8 | H107: 12 | I107: 26 | J107: 5 | K107: 128
B108: Florida - Collier (Naples) (April 1-September 30) | C108: Florida | D108: Naples | E108: 116.593025 | F108: 64 | G108: 9 | H108: 13 | I108: 29 | J108: 5 | K108: 180.593025
B109: Florida - Collier (Naples) (February 1-March 31) | C109: Florida | D109: Naples | E109: 214.364745 | F109: 64 | G109: 9 | H109: 13 | I109: 29 | J109: 5 | K109: 278.364745
B110: Florida - Collier (Naples) (October 1-January 31) | C110: Florida | D110: Naples | E110: 116.593025 | F110: 64 | G110: 9 | H110: 13 | I110: 29 | J110: 5 | K110: 180.593025
B111: Florida - Duval, City of Jacksonville and Nassau (Jacksonville/Jacksonville Beach/Mayport Naval Station/Fernandina Beach/Atlantic Beach) | C111: Florida | D111: Jacksonville/Jacksonville Beach/Mayport Naval Station/Fernandina Beach/Atlantic Beach | E111: 84.38698 | F111: 49 | G111: 9 | H111: 13 | I111: 24 | J111: 5 | K111: 133.38698
B112: Florida - Escambia (Pensacola/Pensacola Beach) | C112: Florida | D112: Pensacola/Pensacola Beach | E112: 101.16436 | F112: 49 | G112: 9 | H112: 13 | I112: 24 | J112: 5 | K112: 150.16436
B113: Florida - Highlands (Sebring) | C113: Florida | D113: Sebring | E113: 88.16114 | F113: 39 | G113: 7 | H113: 7 | I113: 18 | J113: 5 | K113: 127.16114
B114: Florida - Indian River (Vero Beach) (April 1-September 30) | C114: Florida | D114: Vero Beach | E114: 98.74053 | F114: 49 | G114: 9 | H114: 13 | I114: 24 | J114: 5 | K114: 147.74053
B115: Florida - Indian River (Vero Beach) (February 1-March 31) | C115: Florida | D115: Vero Beach | E115: 131.729185 | F115: 49 | G115: 9 | H115: 13 | I115: 24 | J115: 5 | K115: 180.729185
B116: Florida - Indian River (Vero Beach) (October 1-January 31) | C116: Florida | D116: Vero Beach | E116: 98.74053 | F116: 49 | G116: 9 | H116: 13 | I116: 24 | J116: 5 | K116: 147.74053
B117: Florida - Lake (Leesburg) | C117: Florida | D117: Leesburg | E117: 82.745285 | F117: 44 | G117: 7 | H117: 11 | I117: 18 | J117: 5 | K117: 126.745285
B118: Florida - Lee (Fort Myers) (January 1-April 30) | C118: Florida | D118: Fort Myers | E118: 132.55388 | F118: 49 | G118: 9 | H118: 13 | I118: 24 | J118: 5 | K118: 181.55388
B119: Florida - Lee (Fort Myers) (May 1-September 30) | C119: Florida | D119: Fort Myers | E119: 83.916445 | F119: 49 | G119: 9 | H119: 13 | I119: 24 | J119: 5 | K119: 132.916445
B120: Florida - Lee (Fort Myers) (October 1-December 31) | C120: Florida | D120: Fort Myers | E120: 83.916445 | F120: 49 | G120: 9 | H120: 13 | I120: 24 | J120: 5 | K120: 132.916445
B121: Florida - Leon (Tallahassee) | C121: Florida | D121: Tallahassee | E121: 88.61125 | F121: 44 | G121: 7 | H121: 11 | I121: 18 | J121: 5 | K121: 132.61125
B122: Florida - Manatee (Bradenton) (April 1-September 30) | C122: Florida | D122: Bradenton | E122: 97.66019 | F122: 39 | G122: 7 | H122: 7 | I122: 18 | J122: 5 | K122: 136.66019
B123: Florida - Manatee (Bradenton) (February 1-March 31) | C123: Florida | D123: Bradenton | E123: 137.053175 | F123: 39 | G123: 7 | H123: 7 | I123: 18 | J123: 5 | K123: 176.053175
B124: Florida - Manatee (Bradenton) (October 1-January 31) | C124: Florida | D124: Bradenton | E124: 97.66019 | F124: 39 | G124: 7 | H124: 7 | I124: 18 | J124: 5 | K124: 136.66019
B125: Florida - Marion (Ocala) (April 1-September 30) | C125: Florida | D125: Ocala | E125: 84.60092 | F125: 44 | G125: 7 | H125: 11 | I125: 18 | J125: 5 | K125: 128.60092
B126: Florida - Marion (Ocala) (January 1-March 31) | C126: Florida | D126: Ocala | E126: 94.952405 | F126: 44 | G126: 7 | H126: 11 | I126: 18 | J126: 5 | K126: 138.952405
B127: Florida - Marion (Ocala) (October 1-December 31) | C127: Florida | D127: Ocala | E127: 84.60092 | F127: 44 | G127: 7 | H127: 11 | I127: 18 | J127: 5 | K127: 128.60092
B128: Florida - Martin (Stuart) (April 1-September 30) | C128: Florida | D128: Stuart | E128: 108.078745 | F128: 49 | G128: 9 | H128: 13 | I128: 24 | J128: 5 | K128: 157.078745
B129: Florida - Martin (Stuart) (February 1-March 31) | C129: Florida | D129: Stuart | E129: 151.83584 | F129: 49 | G129: 9 | H129: 13 | I129: 24 | J129: 5 | K129: 200.83584
B130: Florida - Martin (Stuart) (November 1-January 31) | C130: Florida | D130: Stuart | E130: 114.930335 | F130: 49 | G130: 9 | H130: 13 | I130: 24 | J130: 5 | K130: 163.930335
B131: Florida - Martin (Stuart) (October 1-October 31) | C131: Florida | D131: Stuart | E131: 108.078745 | F131: 49 | G131: 9 | H131: 13 | I131: 24 | J131: 5 | K131: 157.078745
B132: Florida - Miami-Dade (Miami) (March 1-September 30) | C132: Florida | D132: Miami | E132: 118.60047 | F132: 59 | G132: 9 | H132: 13 | I132: 29 | J132: 5 | K132: 177.60047
B133: Florida - Miami-Dade (Miami) (October 1-February 29) | C133: Florida | D133: Miami | E133: 145.944985 | F133: 59 | G133: 9 | H133: 13 | I133: 29 | J133: 5 | K133: 204.944985
B134: Florida - Monroe (Key West) (April 1-September 30) | C134: Florida | D134: Key West | E134: 156.30407 | F134: 64 | G134: 9 | H134: 13 | I134: 29 | J134: 5 | K134: 220.30407
B135: Florida - Monroe (Key West) (December 1-January 31) | C135: Florida | D135: Key West | E135: 187.59973 | F135: 64 | G135: 9 | H135: 13 | I135: 29 | J135: 5 | K135: 251.59973
B136: Florida - Monroe (Key West) (February 1-March 31) | C136: Florida | D136: Key West | E136: 239.06313 | F136: 64 | G136: =VLOOKUP($F136,$N$6:$R$17,2) -> 9 | H136: =VLOOKUP($F136,$N$6:$R$17,3) -> 13 | I136: =VLOOKUP($F136,$N$6:$R$17,4) -> 29 | J136: =VLOOKUP($F136,$N$6:$R$17,5) -> 5 | K136: 303.06313
B137: Florida - Monroe (Key West) (October 1-November 30) | C137: Florida | D137: Key West | E137: 156.30407 | F137: 64 | G137: 9 | H137: 13 | I137: 29 | J137: 5 | K137: 220.30407
B138: Florida - Okaloosa and Walton (Fort Walton Beach/De Funiak Springs) (August 1-September 30) | C138: Florida | D138: Fort Walton Beach/De Funiak Springs | E138: 112.802715 | F138: 44 | G138: 7 | H138: 11 | I138: 18 | J138: 5 | K138: 156.802715
B139: Florida - Okaloosa and Walton (Fort Walton Beach/De Funiak Springs) (June 1-July 31) | C139: Florida | D139: Fort Walton Beach/De Funiak Springs | E139: 169.049745 | F139: 44 | G139: 7 | H139: 11 | I139: 18 | J139: 5 | K139: =E139+F139 -> 213.049745
B140: Florida - Okaloosa and Walton (Fort Walton Beach/De Funiak Springs) (March 1-May 31) | C140: Florida | D140: Fort Walton Beach/De Funiak Springs | E140: 131.7118 | F140: 44 | G140: 7 | H140: 11 | I140: 18 | J140: 5 | K140: 175.7118
B141: Florida - Okaloosa and Walton (Fort Walton Beach/De Funiak Springs) (November 1-February 29) | C141: Florida | D141: Fort Walton Beach/De Funiak Springs | E141: 80.71124 | F141: 44 | G141: 7 | H141: 11 | I141: 18 | J141: 5 | K141: 124.71124
B142: Florida - Okaloosa and Walton (Fort Walton Beach/De Funiak Springs) (October 1-October 31) | C142: Florida | D142: Fort Walton Beach/De Funiak Springs | E142: 112.802715 | F142: 44 | G142: 7 | H142: 11 | I142: 18 | J142: 5 | K142: 156.802715
B143: Florida - Orange (Orlando) (April 1-September 30) | C143: Florida | D143: Orlando | E143: 99.07531 | F143: 49 | G143: 9 | H143: 13 | I143: 24 | J143: 5 | K143: 148.07531
B144: Florida - Orange (Orlando) (January 1-March 31) | C144: Florida | D144: Orlando | E144: 121.02012 | F144: 49 | G144: 9 | H144: 13 | I144: 24 | J144: 5 | K144: 170.02012
B145: Florida - Orange (Orlando) (October 1-December 31) | C145: Florida | D145: Orlando | E145: 99.07531 | F145: 49 | G145: 9 | H145: 13 | I145: 24 | J145: 5 | K145: 148.07531
B146: Florida - Osceola (Kissimmee) (June 1-August 31) | C146: Florida | D146: Kissimmee | E146: 69.65875 | F146: 39 | G146: 7 | H146: 7 | I146: 18 | J146: 5 | K146: 108.65875
B147: Florida - Osceola (Kissimmee) (October 1-May 31) | C147: Florida | D147: Kissimmee | E147: 82.621215 | F147: 39 | G147: 7 | H147: 7 | I147: 18 | J147: 5 | K147: 121.621215
B148: Florida - Osceola (Kissimmee) (September 1-September 30) | C148: Florida | D148: Kissimmee | E148: 82.621215 | F148: 39 | G148: 7 | H148: 7 | I148: 18 | J148: 5 | K148: 121.621215
B149: Florida - Palm Beach (Boca Raton, Delray Beach, Jupiter, Palm Beach Gardens, Palm Beach, Palm Beach Shores, Singer Island and West Palm Beach) (April 1-September 30) | C149: Florida | D149: Boca Raton, Delray Beach, Jupiter, Palm Beach Gardens, Palm Beach, Palm Beach Shores, Singer Island and West Palm Beach | E149: 103.381565 | F149: 64 | G149: 9 | H149: 13 | I149: 29 | J149: 5 | K149: 167.381565
B150: Florida - Palm Beach (Boca Raton, Delray Beach, Jupiter, Palm Beach Gardens, Palm Beach, Palm Beach Shores, Singer Island and West Palm Beach) (January 1-March 31) | C150: Florida | D150: Boca Raton, Delray Beach, Jupiter, Palm Beach Gardens, Palm Beach, Palm Beach Shores, Singer Island and West Palm Beach | E150: 157.69487 | F150: 64 | G150: 9 | H150: 13 | I150: 29 | J150: 5 | K150: 221.69487
B151: Florida - Palm Beach (Boca Raton, Delray Beach, Jupiter, Palm Beach Gardens, Palm Beach, Palm Beach Shores, Singer Island and West Palm Beach) (October 1-December 31) | C151: Florida | D151: Boca Raton, Delray Beach, Jupiter, Palm Beach Gardens, Palm Beach, Palm Beach Shores, Singer Island and West Palm Beach | E151: 103.381565 | F151: 64 | G151: 9 | H151: 13 | I151: 29 | J151: 5 | K151: 167.381565
B152: Florida - Pinellas and Hillsborough (Tampa/St. Petersburg) (April 1-September 30) | C152: Florida | D152: Tampa/St. Petersburg | E152: 97.720135 | F152: 54 | G152: 8 | H152: 12 | I152: 26 | J152: 5 | K152: 151.720135
B153: Florida - Pinellas and Hillsborough (Tampa/St. Petersburg) (January 1-March 31) | C153: Florida | D153: Tampa/St. Petersburg | E153: 122.635215 | F153: 54 | G153: 8 | H153: 12 | I153: 26 | J153: 5 | K153: 176.635215
B154: Florida - Pinellas and Hillsborough (Tampa/St. Petersburg) (October 1-December 31) | C154: Florida | D154: Tampa/St. Petersburg | E154: 97.720135 | F154: 54 | G154: 8 | H154: 12 | I154: 26 | J154: 5 | K154: 151.720135
B155: Florida - Polk (Lakeland) | C155: Florida | D155: Lakeland | E155: 82.81283 | F155: 39 | G155: 7 | H155: 7 | I155: 18 | J155: 5 | K155: 121.81283
B156: Florida - Saint Lucie (Fort Pierce) (April 1-September 30) | C156: Florida | D156: Fort Pierce | E156: 100.781795 | F156: 49 | G156: 9 | H156: 13 | I156: 24 | J156: 5 | K156: 149.781795
B157: Florida - Saint Lucie (Fort Pierce) (February 1-March 31) | C157: Florida | D157: Fort Pierce | E157: 132.538585 | F157: 49 | G157: 9 | H157: 13 | I157: 24 | J157: 5 | K157: 181.538585
B158: Florida - Saint Lucie (Fort Pierce) (October 1-January 31) | C158: Florida | D158: Fort Pierce | E158: 100.781795 | F158: 49 | G158: 9 | H158: 13 | I158: 24 | J158: 5 | K158: 149.781795
B159: Florida - Santa Rosa (Gulf Breeze) (August 1-September 30) | C159: Florida | D159: Gulf Breeze | E159: 96.85326 | F159: 39 | G159: 7 | H159: 7 | I159: 18 | J159: 5 | K159: 135.85326
B160: Florida - Santa Rosa (Gulf Breeze) (June 1-July 31) | C160: Florida | D160: Gulf Breeze | E160: 146.86639 | F160: 39 | G160: 7 | H160: 7 | I160: 18 | J160: 5 | K160: 185.86639
B161: Florida - Santa Rosa (Gulf Breeze) (March 1-May 31) | C161: Florida | D161: Gulf Breeze | E161: 118.71447 | F161: 39 | G161: 7 | H161: 7 | I161: 18 | J161: 5 | K161: 157.71447
B162: Florida - Santa Rosa (Gulf Breeze) (October 1-February 29) | C162: Florida | D162: Gulf Breeze | E162: 96.85326 | F162: 39 | G162: 7 | H162: 7 | I162: 18 | J162: 5 | K162: 135.85326
B163: Florida - Sarasota (Sarasota) (April 1-September 30) | C163: Florida | D163: Sarasota | E163: 95.21945 | F163: 49 | G163: 9 | H163: 13 | I163: 24 | J163: 5 | K163: 144.21945
B164: Florida - Sarasota (Sarasota) (February 1-March 31) | C164: Florida | D164: Sarasota | E164: 140.05603 | F164: 49 | G164: 9 | H164: 13 | I164: 24 | J164: 5 | K164: 189.05603
B165: Florida - Sarasota (Sarasota) (October 1-January 31) | C165: Florida | D165: Sarasota | E165: 95.21945 | F165: 49 | G165: 9 | H165: 13 | I165: 24 | J165: 5 | K165: 144.21945
B166: Florida - Seminole (Altamonte Springs) (April 1-September 30) | C166: Florida | D166: Altamonte Springs | E166: 82.57989 | F166: 39 | G166: 7 | H166: 7 | I166: 18 | J166: 5 | K166: 121.57989
B167: Florida - Seminole (Altamonte Springs) (January 1-March 31) | C167: Florida | D167: Altamonte Springs | E167: 96.113305 | F167: 39 | G167: 7 | H167: 7 | I167: 18 | J167: 5 | K167: 135.113305
B168: Florida - Seminole (Altamonte Springs) (October 1-December 31) | C168: Florida | D168: Altamonte Springs | E168: 82.57989 | F168: 39 | G168: 7 | H168: 7 | I168: 18 | J168: 5 | K168: 121.57989
B169: Florida - St. Johns (St. Augustine) (April 1-September 30) | C169: Florida | D169: St. Augustine | E169: 94.431615 | F169: 54 | G169: 8 | H169: 12 | I169: 26 | J169: 5 | K169: 148.431615
B170: Florida - St. Johns (St. Augustine) (February 1-March 31) | C170: Florida | D170: St. Augustine | E170: 107.27153 | F170: 54 | G170: 8 | H170: 12 | I170: 26 | J170: 5 | K170: 161.27153
B171: Florida - St. Johns (St. Augustine) (October 1-January 31) | C171: Florida | D171: St. Augustine | E171: 94.431615 | F171: 54 | G171: 8 | H171: 12 | I171: 26 | J171: 5 | K171: 148.431615
B172: Florida - Volusia (Daytona Beach) (April 1-May 31) | C172: Florida | D172: Daytona Beach | E172: 93.16555 | F172: 39 | G172: 7 | H172: 7 | I172: 18 | J172: 5 | K172: 132.16555
B173: Florida - Volusia (Daytona Beach) (August 1-September 30) | C173: Florida | D173: Daytona Beach | E173: 87.414535 | F173: 39 | G173: 7 | H173: 7 | I173: 18 | J173: 5 | K173: 126.414535
B174: Florida - Volusia (Daytona Beach) (February 1-March 31) | C174: Florida | D174: Daytona Beach | E174: 138.30005 | F174: 39 | G174: 7 | H174: 7 | I174: 18 | J174: 5 | K174: 177.30005
B175: Florida - Volusia (Daytona Beach) (June 1-July 31) | C175: Florida | D175: Daytona Beach | E175: 103.047925 | F175: 39 | G175: 7 | H175: 7 | I175: 18 | J175: 5 | K175: 142.047925
B176: Florida - Volusia (Daytona Beach) (October 1-January 31) | C176: Florida | D176: Daytona Beach | E176: 87.414535 | F176: 39 | G176: 7 | H176: 7 | I176: 18 | J176: 5 | K176: 126.414535
B177: GEORGIA -- Conus Rate | C177: Georgia | D177: CONUS | E177: 70 | F177: 39 | G177: 7 | H177: 7 | I177: 18 | J177: 5 | K177: 109
B178: Georgia - Chatham (Savannah) | C178: Georgia | D178: Savannah | E178: 104.324345 | F178: 49 | G178: 9 | H178: 13 | I178: 24 | J178: 5 | K178: 153.324345
B179: Georgia - Clarke (Athens) | C179: Georgia | D179: Athens | E179: 79.64439 | F179: 39 | G179: 7 | H179: 7 | I179: 18 | J179: 5 | K179: 118.64439
B180: Georgia - Fayette/Coweta/Clayton (Peachtree City/Jonesboro/Morrow/Newnan) | C180: Georgia | D180: Peachtree City/Jonesboro/Morrow/Newnan | E180: 77.485705 | F180: 44 | G180: 7 | H180: 11 | I180: 18 | J180: 5 | K180: 121.485705
B181: Georgia - Fulton, Dekalb and Cobb (Atlanta) (April 1-September 30) | C181: Georgia | D181: Atlanta | E181: 128.641115 | F181: 49 | G181: 9 | H181: 13 | I181: 24 | J181: 5 | K181: 177.641115
B182: Georgia - Fulton, Dekalb and Cobb (Atlanta) (January 1-March 31) | C182: Georgia | D182: Atlanta | E182: 138.83775 | F182: 49 | G182: 9 | H182: 13 | I182: 24 | J182: 5 | K182: 187.83775
B183: Georgia - Fulton, Dekalb and Cobb (Atlanta) (October 1-December 31) | C183: Georgia | D183: Atlanta | E183: 128.641115 | F183: 49 | G183: 9 | H183: 13 | I183: 24 | J183: 5 | K183: 177.641115
B184: Georgia - Glynn (Jekyll Island/Brunswick) | C184: Georgia | D184: Jekyll Island/Brunswick | E184: 125.3221 | F184: 49 | G184: 9 | H184: 13 | I184: 24 | J184: 5 | K184: 174.3221
B185: Georgia - Gwinnett (Duluth/Norcross/Lawrenceville/Braselton) | C185: Georgia | D185: Duluth/Norcross/Lawrenceville/Braselton | E185: 76.271225 | F185: 44 | G185: 7 | H185: 11 | I185: 18 | J185: 5 | K185: 120.271225
B186: Georgia - Muscogee (Columbus) | C186: Georgia | D186: Columbus | E186: 84.4113 | F186: 39 | G186: 7 | H186: 7 | I186: 18 | J186: 5 | K186: 123.4113
B187: Georgia - Richmond (Augusta) | C187: Georgia | D187: Augusta | E187: 79.992945 | F187: 39 | G187: 7 | H187: 7 | I187: 18 | J187: 5 | K187: 118.992945
B188: Georgia - Rockdale (Conyers) | C188: Georgia | D188: Conyers | E188: 74.51895 | F188: 39 | G188: 7 | H188: 7 | I188: 18 | J188: 5 | K188: 113.51895
B189: IDAHO -- Conus Rate | C189: Idaho | D189: CONUS | E189: 70 | F189: 39 | G189: 7 | H189: 7 | I189: 18 | J189: 5 | K189: 109
B190: Idaho - Ada (Boise) | C190: Idaho | D190: Boise | E190: 85.03849 | F190: 49 | G190: 9 | H190: 13 | I190: 24 | J190: 5 | K190: 134.03849
B191: Idaho - Blaine (Sun Valley/Ketchum) | C191: Idaho | D191: Sun Valley/Ketchum | E191: 79.05292 | F191: 59 | G191: 9 | H191: 13 | I191: 29 | J191: 5 | K191: 138.05292
B192: Idaho - Kootenai (Coeur d'Alene) (June 1-August 31) | C192: Idaho | D192: Coeur d'Alene | E192: 104.88703 | F192: 59 | G192: 9 | H192: 13 | I192: 29 | J192: 5 | K192: 163.88703
B193: Idaho - Kootenai (Coeur d'Alene) (October 1-May 31) | C193: Idaho | D193: Coeur d'Alene | E193: 70.64561 | F193: 59 | G193: 9 | H193: 13 | I193: 29 | J193: 5 | K193: 129.64561
B194: Idaho - Kootenai (Coeur d'Alene) (September 1-September 30) | C194: Idaho | D194: Coeur d'Alene | E194: 70.64561 | F194: 59 | G194: 9 | H194: 13 | I194: 29 | J194: 5 | K194: 129.64561
B195: Idaho - Twin Falls (Twin Falls) | C195: Idaho | D195: Twin Falls | E195: 80.771945 | F195: 39 | G195: 7 | H195: 7 | I195: 18 | J195: 5 | K195: 119.771945
B196: Illinois - City of Elgin, Kane (Elgin/Aurora) | C196: Illinois | D196: Elgin/Aurora | E196: 82.921795 | F196: 44 | G196: 7 | H196: 11 | I196: 18 | J196: 5 | K196: 126.921795
B197: Illinois - Cook and Lake (Chicago) (December 1-April 30) | C197: Illinois | D197: Chicago | E197: 149.280625 | F197: 64 | G197: 9 | H197: 13 | I197: 29 | J197: 5 | K197: 213.280625
B198: Illinois - Cook and Lake (Chicago) (July 1-August 31) | C198: Illinois | D198: Chicago | E198: 167.996385 | F198: 64 | G198: 9 | H198: 13 | I198: 29 | J198: 5 | K198: 231.996385
B199: Illinois - Cook and Lake (Chicago) (May 1-June 30) | C199: Illinois | D199: Chicago | E199: 188.375025 | F199: 64 | G199: 9 | H199: 13 | I199: 29 | J199: 5 | K199: 252.375025
B200: Illinois - Cook and Lake (Chicago) (October 1-November 30) | C200: Illinois | D200: Chicago | E200: 205.410995 | F200: 64 | G200: =VLOOKUP($F200,$N$6:$R$17,2) -> 9 | H200: =VLOOKUP($F200,$N$6:$R$17,3) -> 13 | I200: =VLOOKUP($F200,$N$6:$R$17,4) -> 29 | J200: =VLOOKUP($F200,$N$6:$R$17,5) -> 5 | K200: 269.410995
B201: Illinois - Cook and Lake (Chicago) (September 1-September 30) | C201: Illinois | D201: Chicago | E201: 205.410995 | F201: 64 | G201: 9 | H201: 13 | I201: 29 | J201: 5 | K201: 269.410995
B202: Illinois - Dupage (Oak Brook Terrace) | C202: Illinois | D202: Oak Brook Terrace | E202: 103.648515 | F202: 49 | G202: 9 | H202: 13 | I202: 24 | J202: 5 | K202: 152.648515
B203: Illinois - Sangamon (Springfield ) | C203: Illinois | D203: Springfield | E203: 80.164515 | F203: 49 | G203: 9 | H203: 13 | I203: 24 | J203: 5 | K203: =E203+F203 -> 129.164515
... 458 more rows

Sheet Sheet1
A1: State | B1: Destination | C1: Location Defined (Counties unless otherwise defined) | D1: Season Begin Date | E1: Season End Date | H1: FY06 Final Lodging Rate | I1: FY06 M&IE | J1: Maximum Per Diem Rate
B2: Standard CONUS Rate applies to all destinations not specifically listed | H2: 60 | I2: 39 | J2: =SUM(H2:I2) -> 99
A3: AL | B3: Birmingham | C3: Jefferson and Shelby | F3: ALABAMA | G3: =+C3&" "&MONTH(D3)&"/"&DAY(D3)&"-"&MONTH(E3)&"/"&DAY(E3) -> Jefferson and Shelby 1/0-1/0 | H3: 72 | I3: 44 | J3: 116
A4: AL | B4: Gulf Shores | C4: Baldwin | D4: 2005-10-01 | E4: 2006-02-28 | F4: ALABAMA | G4: Baldwin 10/1-2/28 | H4: 80 | I4: 39 | J4: 119
A5: AL | B5: Gulf Shores | C5: Baldwin | D5: 2006-03-01 | E5: 2006-08-31 | F5: ALABAMA | G5: Baldwin 3/1-8/31 | H5: 93 | I5: 39 | J5: 132
A6: AL | B6: Gulf Shores | C6: Baldwin | D6: 2006-09-01 | E6: 2006-09-30 | F6: ALABAMA | G6: Baldwin 9/1-9/30 | H6: 80 | I6: 39 | J6: 119
A7: AL | B7: Huntsville | C7: Madison and Limestone | F7: ALABAMA | G7: Madison and Limestone 1/0-1/0 | H7: 66 | I7: 44 | J7: 110
A8: AR | B8: Hot Springs | C8: Garland | F8: ARKANSAS | G8: Garland 1/0-1/0 | H8: 76 | I8: 49 | J8: 125
A9: AR | B9: Little Rock | C9: Pulaski | F9: ARKANSAS | G9: Pulaski 1/0-1/0 | H9: 71 | I9: 54 | J9: 125
A10: AZ | B10: Grand Canyon/Flagstaff | C10: Coconino (except the city limits of Sedona) | F10: ARIZONA | G10: Coconino (except the city limits of Sedona) 1/0-1/0 | H10: 68 | I10: 44 | J10: 112
A11: AZ | B11: Kayenta | C11: Navajo | D11: 2005-10-01 | E11: 2006-04-30 | F11: ARIZONA | G11: Navajo 10/1-4/30 | H11: 61 | I11: 54 | J11: 115
A12: AZ | B12: Kayenta | C12: Navajo | D12: 2006-05-01 | E12: 2006-09-30 | F12: ARIZONA | G12: Navajo 5/1-9/30 | H12: 74 | I12: 54 | J12: 128
A13: AZ | B13: Phoenix/Scottsdale | C13: Maricopa | D13: 2005-10-01 | E13: 2005-12-31 | F13: ARIZONA | G13: Maricopa 10/1-12/31 | H13: 84 | I13: 59 | J13: 143
A14: AZ | B14: Phoenix/Scottsdale | C14: Maricopa | D14: 2006-01-01 | E14: 2006-03-31 | F14: ARIZONA | G14: Maricopa 1/1-3/31 | H14: 127 | I14: 59 | J14: 186
A15: AZ | B15: Phoenix/Scottsdale | C15: Maricopa | D15: 2006-04-01 | E15: 2006-05-31 | F15: ARIZONA | G15: Maricopa 4/1-5/31 | H15: 109 | I15: 59 | J15: 168
A16: AZ | B16: Phoenix/Scottsdale | C16: Maricopa | D16: 2006-06-01 | E16: 2006-09-30 | F16: ARIZONA | G16: Maricopa 6/1-9/30 | H16: 84 | I16: 59 | J16: 143
A17: AZ | B17: Sedona | C17: City of Sedona which falls within Yavapai and Coconino Counties, Yavapai | D17: 2005-10-01 | E17: 2006-02-28 | F17: ARIZONA | G17: City of Sedona which falls within Yavapai and Coconino Counties, Yavapai 10/1-2/28 | H17: 94 | I17: 64 | J17: 158
A18: AZ | B18: Sedona | C18: City of Sedona which falls within Yavapai and Coconino Counties, Yavapai | D18: 2006-03-01 | E18: 2006-05-31 | F18: ARIZONA | G18: City of Sedona which falls within Yavapai and Coconino Counties, Yavapai 3/1-5/31 | H18: 110 | I18: 64 | J18: 174
A19: AZ | B19: Sedona | C19: City of Sedona which falls within Yavapai and Coconino Counties, Yavapai | D19: 2006-06-01 | E19: 2006-09-30 | F19: ARIZONA | G19: City of Sedona which falls within Yavapai and Coconino Counties, Yavapai 6/1-9/30 | H19: 94 | I19: 64 | J19: 158
A20: AZ | B20: Tucson | C20: Pima | D20: 2005-10-01 | E20: 2006-02-28 | F20: ARIZONA | G20: Pima 10/1-2/28 | H20: 88 | I20: 49 | J20: 137
A21: AZ | B21: Tucson | C21: Pima | D21: 2006-03-01 | E21: 2006-09-30 | F21: ARIZONA | G21: Pima 3/1-9/30 | H21: 75 | I21: 49 | J21: 124
A22: AZ | B22: Yuma | C22: Yuma | F22: ARIZONA | G22: Yuma 1/0-1/0 | H22: 67 | I22: 39 | J22: 106
A23: CA | B23: Antioch/Brentwood/Concord/Lafayette/Martinez/Pleasant Hill/Richmond/San Ramon/Walnut Creek | C23: Contra Costa | F23: California | G23: Contra Costa 1/0-1/0 | H23: 101 | I23: 49 | J23: 150
A24: CA | B24: Bakersfield/Delano (Naval Weapons Center and Ordinance Test Station, China Lake) | C24: Kern | F24: California | G24: Kern 1/0-1/0 | H24: 62 | I24: 44 | J24: 106
A25: CA | B25: Barstow/Ontario/Victorville | C25: San Bernardino | F25: California | G25: San Bernardino 1/0-1/0 | H25: 76 | I25: 59 | J25: 135
A26: CA | B26: Benicia/Dixon/Fairfield/Vacaville/Vallejo | C26: Solano | F26: California | G26: Solano 1/0-1/0 | H26: 80 | I26: 44 | J26: 124
A27: CA | B27: Brawley/Calexico/El Centro/Imperial | C27: Imperial | F27: California | G27: Imperial 1/0-1/0 | H27: 68 | I27: 39 | J27: 107
A28: CA | B28: Clearlake | C28: Lake | F28: California | G28: Lake 1/0-1/0 | H28: 61 | I28: 44 | J28: 105
A29: CA | B29: Death Valley | C29: Inyo | F29: California | G29: Inyo 1/0-1/0 | H29: 70 | I29: 49 | J29: 119
A30: CA | B30: Fresno | C30: Fresno | F30: California | G30: Fresno 1/0-1/0 | H30: 72 | I30: 54 | J30: 126
A31: CA | B31: Los Angeles | C31: Los Angeles, Orange and Ventura, Edwards AFB | F31: California | G31: Los Angeles, Orange and Ventura, Edwards AFB 1/0-1/0 | H31: 96 | I31: 64 | J31: 160
A32: CA | B32: Mammoth Lakes | C32: Mono | D32: 2005-10-01 | E32: 2005-11-30 | F32: California | G32: Mono 10/1-11/30 | H32: 79 | I32: 54 | J32: 133
A33: CA | B33: Mammoth Lakes | C33: Mono | D33: 2005-12-01 | E33: 2006-01-31 | F33: California | G33: Mono 12/1-1/31 | H33: 106 | I33: 54 | J33: 160
A34: CA | B34: Mammoth Lakes | C34: Mono | D34: 2006-02-01 | E34: 2006-09-30 | F34: California | G34: Mono 2/1-9/30 | H34: 79 | I34: 54 | J34: 133
A35: CA | B35: Mill Valley/San Rafael/Novato/Corte Madera/Sausalito/Tiburon/Larkspur | C35: Marin | F35: California | G35: Marin 1/0-1/0 | H35: 97 | I35: 54 | J35: 151
A36: CA | B36: Modesto | C36: Stanislaus | F36: California | G36: Stanislaus 1/0-1/0 | H36: 77 | I36: 49 | J36: 126
A37: CA | B37: Monterey | C37: Monterey | F37: California | G37: Monterey 1/0-1/0 | H37: 103 | I37: 64 | J37: 167
A38: CA | B38: Napa | C38: Napa | F38: California | G38: Napa 1/0-1/0 | H38: 124 | I38: 64 | J38: 188
A39: CA | B39: Oakhurst | C39: Madera | F39: California | G39: Madera 1/0-1/0 | H39: 67 | I39: 39 | J39: 106
A40: CA | B40: Oakland | C40: Alameda | F40: California | G40: Alameda 1/0-1/0 | H40: 89 | I40: 59 | J40: 148
A41: CA | B41: Palm Springs | C41: Riverside | D41: 2005-10-01 | E41: 2005-12-31 | F41: California | G41: Riverside 10/1-12/31 | H41: 99 | I41: 59 | J41: 158
A42: CA | B42: Palm Springs | C42: Riverside | D42: 2006-01-01 | E42: 2006-04-30 | F42: California | G42: Riverside 1/1-4/30 | H42: 122 | I42: 59 | J42: 181
A43: CA | B43: Palm Springs | C43: Riverside | D43: 2006-05-01 | E43: 2006-09-30 | F43: California | G43: Riverside 5/1-9/30 | H43: 83 | I43: 59 | J43: 142
A44: CA | B44: Point Arena/Gualala | C44: Mendocino | F44: California | G44: Mendocino 1/0-1/0 | H44: 66 | I44: 54 | J44: 120
A45: CA | B45: Redding | C45: Shasta | F45: California | G45: Shasta 1/0-1/0 | H45: 76 | I45: 44 | J45: 120
A46: CA | B46: Sacramento | C46: Sacramento | F46: California | G46: Sacramento 1/0-1/0 | H46: 94 | I46: 59 | J46: 153
A47: CA | B47: San Diego | C47: San Diego | D47: 2005-10-01 | E47: 2005-12-31 | F47: California | G47: San Diego 10/1-12/31 | H47: 120 | I47: 64 | J47: 184
A48: CA | B48: San Diego | C48: San Diego | D48: 2006-01-01 | E48: 2006-05-31 | F48: California | G48: San Diego 1/1-5/31 | H48: 127 | I48: 64 | J48: 191
A49: CA | B49: San Diego | C49: San Diego | D49: 2006-06-01 | E49: 2006-09-30 | F49: California | G49: San Diego 6/1-9/30 | H49: 120 | I49: 64 | J49: 184
A50: CA | B50: San Francisco | C50: San Francisco | F50: California | G50: San Francisco 1/0-1/0 | H50: 130 | I50: 64 | J50: 194
A51: CA | B51: San Luis Obispo | C51: San Luis Obispo | F51: California | G51: San Luis Obispo 1/0-1/0 | H51: 94 | I51: 54 | J51: 148
A52: CA | B52: San Mateo/Foster City/Belmont | C52: San Mateo | F52: California | G52: San Mateo 1/0-1/0 | H52: 86 | I52: 54 | J52: 140
A53: CA | B53: Santa Barbara | C53: Santa Barbara | D53: 2005-10-01 | E53: 2006-06-30 | F53: California | G53: Santa Barbara 10/1-6/30 | H53: 100 | I53: 59 | J53: 159
A54: CA | B54: Santa Barbara | C54: Santa Barbara | D54: 2006-07-01 | E54: 2006-08-31 | F54: California | G54: Santa Barbara 7/1-8/31 | H54: 117 | I54: 59 | J54: 176
A55: CA | B55: Santa Barbara | C55: Santa Barbara | D55: 2006-09-01 | E55: 2006-09-30 | F55: California | G55: Santa Barbara 9/1-9/30 | H55: 100 | I55: 59 | J55: 159
A56: CA | B56: Santa Cruz | C56: Santa Cruz | D56: 2005-10-01 | E56: 2006-05-31 | F56: California | G56: Santa Cruz 10/1-5/31 | H56: 70 | I56: 54 | J56: 124
A57: CA | B57: Santa Cruz | C57: Santa Cruz | D57: 2006-06-01 | E57: 2006-08-31 | F57: California | G57: Santa Cruz 6/1-8/31 | H57: 85 | I57: 54 | J57: 139
A58: CA | B58: Santa Cruz | C58: Santa Cruz | D58: 2006-09-01 | E58: 2006-09-30 | F58: California | G58: Santa Cruz 9/1-9/30 | H58: 70 | I58: 54 | J58: 124
A59: CA | B59: Santa Monica | C59: City limits of Santa Monica | F59: California | G59: City limits of Santa Monica 1/0-1/0 | H59: 149 | I59: 64 | J59: 213
A60: CA | B60: Santa Rosa | C60: Sonoma | F60: California | G60: Sonoma 1/0-1/0 | H60: 100 | I60: 64 | J60: 164
A61: CA | B61: South Lake Tahoe | C61: El Dorado | D61: 2005-10-01 | E61: 2005-12-31 | F61: California | G61: El Dorado 10/1-12/31 | H61: 124 | I61: 54 | J61: 178
A62: CA | B62: South Lake Tahoe | C62: El Dorado | D62: 2006-01-01 | E62: 2006-06-30 | F62: California | G62: El Dorado 1/1-6/30 | H62: 114 | I62: 54 | J62: 168
A63: CA | B63: South Lake Tahoe | C63: El Dorado | D63: 2006-07-01 | E63: 2006-09-30 | F63: California | G63: El Dorado 7/1-9/30 | H63: 124 | I63: 54 | J63: 178
A64: CA | B64: Stockton | C64: San Joaquin | F64: California | G64: San Joaquin 1/0-1/0 | H64: 70 | I64: 44 | J64: 114
A65: CA | B65: Sunnyvale/Palo Alto/San Jose | C65: Santa Clara | F65: California | G65: Santa Clara 1/0-1/0 | H65: 101 | I65: 59 | J65: 160
A66: CA | B66: Tahoe City | C66: Placer | F66: California | G66: Placer 1/0-1/0 | H66: 92 | I66: 59 | J66: =SUM(H66:I66) -> 151
A67: CA | B67: Truckee | C67: Nevada | D67: 2005-10-01 | E67: 2005-11-30 | F67: California | G67: =+C67&" "&MONTH(D67)&"/"&DAY(D67)&"-"&MONTH(E67)&"/"&DAY(E67) -> Nevada 10/1-11/30 | H67: 80 | I67: 59 | J67: 139
A68: CA | B68: Truckee | C68: Nevada | D68: 2005-12-01 | E68: 2006-02-28 | F68: California | G68: Nevada 12/1-2/28 | H68: 93 | I68: 59 | J68: 152
A69: CA | B69: Truckee | C69: Nevada | D69: 2006-03-01 | E69: 2006-09-30 | F69: California | G69: Nevada 3/1-9/30 | H69: 80 | I69: 59 | J69: 139
A70: CA | B70: Visalia/Lemoore | C70: Tulare and Kings | F70: California | G70: Tulare and Kings 1/0-1/0 | H70: 65 | I70: 49 | J70: 114
A71: CA | B71: West Sacramento | C71: Yolo | F71: California | G71: Yolo 1/0-1/0 | H71: 75 | I71: 44 | J71: 119
A72: CA | B72: Yosemite National Park | C72: Mariposa | D72: 2005-10-01 | E72: 2005-10-31 | F72: California | G72: Mariposa 10/1-10/31 | H72: 80 | I72: 64 | J72: 144
A73: CA | B73: Yosemite National Park | C73: Mariposa | D73: 2005-11-01 | E73: 2005-12-31 | F73: California | G73: Mariposa 11/1-12/31 | H73: 104 | I73: 64 | J73: 168
A74: CA | B74: Yosemite National Park | C74: Mariposa | D74: 2006-01-01 | E74: 2006-09-30 | F74: California | G74: Mariposa 1/1-9/30 | H74: 80 | I74: 64 | J74: 144
A75: CO | B75: Aspen | C75: Pitkin | D75: 2005-10-01 | E75: 2005-11-30 | F75: COLORADO | G75: Pitkin 10/1-11/30 | H75: 104 | I75: 64 | J75: 168
A76: CO | B76: Aspen | C76: Pitkin | D76: 2005-12-01 | E76: 2006-03-31 | F76: COLORADO | G76: Pitkin 12/1-3/31 | H76: 229 | I76: 64 | J76: 293
A77: CO | B77: Aspen | C77: Pitkin | D77: 2006-04-01 | E77: 2006-08-31 | F77: COLORADO | G77: Pitkin 4/1-8/31 | H77: 119 | I77: 64 | J77: 183
A78: CO | B78: Aspen | C78: Pitkin | D78: 2006-09-01 | E78: 2006-09-30 | F78: COLORADO | G78: Pitkin 9/1-9/30 | H78: 104 | I78: 64 | J78: 168
A79: CO | B79: Boulder/Broomfield | C79: Boulder and Broomfield | F79: COLORADO | G79: Boulder and Broomfield 1/0-1/0 | H79: 90 | I79: 54 | J79: 144
A80: CO | B80: Colorado Springs | C80: El Paso | F80: COLORADO | G80: El Paso 1/0-1/0 | H80: 70 | I80: 44 | J80: 114
A81: CO | B81: Cortez | C81: Montezuma | F81: COLORADO | G81: Montezuma 1/0-1/0 | H81: 69 | I81: 39 | J81: 108
A82: CO | B82: Crested Butte/Gunnison | C82: Gunnison | D82: 2005-10-01 | E82: 2005-11-30 | F82: COLORADO | G82: Gunnison 10/1-11/30 | H82: 93 | I82: 49 | J82: 142
A83: CO | B83: Crested Butte/Gunnison | C83: Gunnison | D83: 2005-12-01 | E83: 2006-04-30 | F83: COLORADO | G83: Gunnison 12/1-4/30 | H83: 195 | I83: 49 | J83: 244
A84: CO | B84: Crested Butte/Gunnison | C84: Gunnison | D84: 2006-05-01 | E84: 2006-09-30 | F84: COLORADO | G84: Gunnison 5/1-9/30 | H84: 93 | I84: 49 | J84: 142
A85: CO | B85: Denver/Aurora | C85: Denver, Adams, Arapahoe, Jefferson and Douglas Counties | F85: COLORADO | G85: Denver, Adams, Arapahoe, Jefferson and Douglas Counties 1/0-1/0 | H85: 119 | I85: 49 | J85: 168
A86: CO | B86: Durango | C86: La Plata | D86: 2005-10-01 | E86: 2006-04-30 | F86: COLORADO | G86: La Plata 10/1-4/30 | H86: 73 | I86: 49 | J86: 122
A87: CO | B87: Durango | C87: La Plata | D87: 2006-05-01 | E87: 2006-09-30 | F87: COLORADO | G87: La Plata 5/1-9/30 | H87: 93 | I87: 49 | J87: 142
A88: CO | B88: Fort Collins/Loveland | C88: Larimer | F88: COLORADO | G88: Larimer 1/0-1/0 | H88: 73 | I88: 44 | J88: 117
A89: CO | B89: Glenwood Springs | C89: Garfield | D89: 2005-10-01 | E89: 2006-05-31 | F89: COLORADO | G89: Garfield 10/1-5/31 | H89: 68 | I89: 49 | J89: 117
A90: CO | B90: Glenwood Springs | C90: Garfield | D90: 2006-06-01 | E90: 2006-08-31 | F90: COLORADO | G90: Garfield 6/1-8/31 | H90: 82 | I90: 49 | J90: 131
A91: CO | B91: Glenwood Springs | C91: Garfield | D91: 2006-09-01 | E91: 2006-09-30 | F91: COLORADO | G91: Garfield 9/1-9/30 | H91: 68 | I91: 49 | J91: 117
A92: CO | B92: Grand Junction | C92: Mesa | F92: COLORADO | G92: Mesa 1/0-1/0 | H92: 62 | I92: 44 | J92: 106
A93: CO | B93: Montrose | C93: Montrose | D93: 2005-10-01 | E93: 2006-05-31 | F93: COLORADO | G93: Montrose 10/1-5/31 | H93: 63 | I93: 39 | J93: 102
A94: CO | B94: Montrose | C94: Montrose | D94: 2006-06-01 | E94: 2006-08-31 | F94: COLORADO | G94: Montrose 6/1-8/31 | H94: 76 | I94: 39 | J94: 115
A95: CO | B95: Montrose | C95: Montrose | D95: 2006-09-01 | E95: 2006-09-30 | F95: COLORADO | G95: Montrose 9/1-9/30 | H95: 63 | I95: 39 | J95: 102
A96: CO | B96: Silverthorne/Breckenridge | C96: Summit | D96: 2005-10-01 | E96: 2005-11-30 | F96: COLORADO | G96: Summit 10/1-11/30 | H96: 89 | I96: 54 | J96: 143
A97: CO | B97: Silverthorne/Breckenridge | C97: Summit | D97: 2005-12-01 | E97: 2006-03-31 | F97: COLORADO | G97: Summit 12/1-3/31 | H97: 157 | I97: 54 | J97: 211
A98: CO | B98: Silverthorne/Breckenridge | C98: Summit | D98: 2006-04-01 | E98: 2006-09-30 | F98: COLORADO | G98: Summit 4/1-9/30 | H98: 89 | I98: 54 | J98: 143
A99: CO | B99: Steamboat Springs | C99: Routt | D99: 2005-10-01 | E99: 2005-11-30 | F99: COLORADO | G99: Routt 10/1-11/30 | H99: 90 | I99: 54 | J99: 144
A100: CO | B100: Steamboat Springs | C100: Routt | D100: 2005-12-01 | E100: 2006-03-31 | F100: COLORADO | G100: Routt 12/1-3/31 | H100: 154 | I100: 54 | J100: 208
A101: CO | B101: Steamboat Springs | C101: Routt | D101: 2006-04-01 | E101: 2006-09-30 | F101: COLORADO | G101: Routt 4/1-9/30 | H101: 90 | I101: 54 | J101: 144
A102: CO | B102: Telluride | C102: San Miguel | D102: 2005-10-01 | E102: 2005-12-31 | F102: COLORADO | G102: San Miguel 10/1-12/31 | H102: 130 | I102: 59 | J102: 189
A103: CO | B103: Telluride | C103: San Miguel | D103: 2006-01-01 | E103: 2006-04-30 | F103: COLORADO | G103: San Miguel 1/1-4/30 | H103: 178 | I103: 59 | J103: 237
A104: CO | B104: Telluride | C104: San Miguel | D104: 2006-05-01 | E104: 2006-09-30 | F104: COLORADO | G104: San Miguel 5/1-9/30 | H104: 112 | I104: 59 | J104: 171
A105: CO | B105: Vail | C105: Eagle | D105: 2005-10-01 | E105: 2005-11-30 | F105: COLORADO | G105: Eagle 10/1-11/30 | H105: 116 | I105: 64 | J105: 180
A106: CO | B106: Vail | C106: Eagle | D106: 2005-12-01 | E106: 2006-03-31 | F106: COLORADO | G106: Eagle 12/1-3/31 | H106: 280 | I106: 64 | J106: 344
A107: CO | B107: Vail | C107: Eagle | D107: 2006-04-01 | E107: 2006-09-30 | F107: COLORADO | G107: Eagle 4/1-9/30 | H107: 116 | I107: 64 | J107: 180
A108: CT | B108: Bridgeport/Danbury | C108: Fairfield | F108: CONNECTICUT | G108: Fairfield 1/0-1/0 | H108: 107 | I108: 64 | J108: 171
A109: CT | B109: Cromwell/Old Saybrook | C109: Middlesex | F109: CONNECTICUT | G109: Middlesex 1/0-1/0 | H109: 77 | I109: 44 | J109: 121
A110: CT | B110: Hartford | C110: Hartford | F110: CONNECTICUT | G110: Hartford 1/0-1/0 | H110: 95 | I110: 49 | J110: 144
A111: CT | B111: Lakeville/Salisbury | C111: Litchfield | F111: CONNECTICUT | G111: Litchfield 1/0-1/0 | H111: 87 | I111: 64 | J111: 151
A112: CT | B112: New Haven | C112: New Haven | F112: CONNECTICUT | G112: New Haven 1/0-1/0 | H112: 85 | I112: 64 | J112: 149
A113: CT | B113: New London/Groton | C113: New London | F113: CONNECTICUT | G113: New London 1/0-1/0 | H113: 87 | I113: 64 | J113: 151
A114: CT | B114: Putnam/Danielson | C114: Windham | F114: CONNECTICUT | G114: Windham 1/0-1/0 | H114: 69 | I114: 59 | J114: 128
A115: CT | B115: Storrs/Mansfield | C115: Tolland | F115: CONNECTICUT | G115: Tolland 1/0-1/0 | H115: 66 | I115: 49 | J115: 115
A116: DC | B116: District of Columbia | C116: Washington DC (also the cities of Alexandria, Falls Church and Fairfax, and the counties of Arlington, Fairfax, and Loudoun in Virginia; and the counties of Montgomery and Prince George's in Maryland) (See also Maryland and Virginia) | D116: 2005-10-01 | E116: 2005-12-31 | F116: DISTRICT OF COLUMBIA | G116: Washington DC (also the cities of Alexandria, Falls Church and Fairfax, and the counties of Arlington, Fairfax, and Loudoun in Virginia; and the counties of Montgomery and Prince George's in Maryland) (See also Maryland and Virginia) 10/1-12/31 | H116: 166 | I116: 64 | J116: =SUM(H116:I116) -> 230
A117: DC | B117: District of Columbia | C117: Washington DC (also the cities of Alexandria, Falls Church and Fairfax, and the counties of Arlington, Fairfax, and Loudoun in Virginia; and the counties of Montgomery and Prince George's in Maryland) (See also Maryland and Virginia) | D117: 2006-01-01 | E117: 2006-05-31 | F117: DISTRICT OF COLUMBIA | G117: Washington DC (also the cities of Alexandria, Falls Church and Fairfax, and the counties of Arlington, Fairfax, and Loudoun in Virginia; and the counties of Montgomery and Prince George's in Maryland) (See also Maryland and Virginia) 1/1-5/31 | H117: 187 | I117: 64 | J117: =SUM(H117:I117) -> 251
A118: DC | B118: District of Columbia | C118: Washington DC (also the cities of Alexandria, Falls Church and Fairfax, and the counties of Arlington, Fairfax, and Loudoun in Virginia; and the counties of Montgomery and Prince George's in Maryland) (See also Maryland and Virginia) | D118: 2006-06-01 | E118: 2006-08-31 | F118: DISTRICT OF COLUMBIA | G118: Washington DC (also the cities of Alexandria, Falls Church and Fairfax, and the counties of Arlington, Fairfax, and Loudoun in Virginia; and the counties of Montgomery and Prince George's in Maryland) (See also Maryland and Virginia) 6/1-8/31 | H118: 145 | I118: 64 | J118: =SUM(H118:I118) -> 209
A119: DC | B119: District of Columbia | C119: Washington DC (also the cities of Alexandria, Falls Church and Fairfax, and the counties of Arlington, Fairfax, and Loudoun in Virginia; and the counties of Montgomery and Prince George's in Maryland) (See also Maryland and Virginia) | D119: 2006-09-01 | E119: 2006-09-30 | F119: DISTRICT OF COLUMBIA | G119: Washington DC (also the cities of Alexandria, Falls Church and Fairfax, and the counties of Arlington, Fairfax, and Loudoun in Virginia; and the counties of Montgomery and Prince George's in Maryland) (See also Maryland and Virginia) 9/1-9/30 | H119: 166 | I119: 64 | J119: =SUM(H119:I119) -> 230
A120: DE | B120: Dover | C120: Kent | D120: 2005-10-01 | E120: 2006-04-30 | F120: DELEWARE | G120: Kent 10/1-4/30 | H120: 72 | I120: 44 | J120: 116
A121: DE | B121: Dover | C121: Kent | D121: 2006-05-01 | E121: 2006-09-30 | F121: DELEWARE | G121: Kent 5/1-9/30 | H121: 79 | I121: 44 | J121: 123
A122: DE | B122: Lewes | C122: Sussex | D122: 2005-10-01 | E122: 2006-06-30 | F122: DELEWARE | G122: Sussex 10/1-6/30 | H122: 67 | I122: 39 | J122: 106
A123: DE | B123: Lewes | C123: Sussex | D123: 2006-07-01 | E123: 2006-08-31 | F123: DELEWARE | G123: Sussex 7/1-8/31 | H123: 107 | I123: 39 | J123: 146
A124: DE | B124: Lewes | C124: Sussex | D124: 2006-09-01 | E124: 2006-09-30 | F124: DELEWARE | G124: Sussex 9/1-9/30 | H124: 67 | I124: 39 | J124: 106
A125: DE | B125: Wilmington | C125: New Castle | F125: DELEWARE | G125: New Castle 1/0-1/0 | H125: 90 | I125: 39 | J125: 129
A126: FL | B126: Altamonte Springs | C126: Seminole | F126: FLORIDA | G126: Seminole 1/0-1/0 | H126: 73 | I126: 39 | J126: 112
A127: FL | B127: Bradenton | C127: Manatee | D127: 2005-10-01 | E127: 2006-01-31 | F127: FLORIDA | G127: Manatee 10/1-1/31 | H127: 70 | I127: 39 | J127: 109
A128: FL | B128: Bradenton | C128: Manatee | D128: 2006-02-01 | E128: 2006-03-31 | F128: FLORIDA | G128: Manatee 2/1-3/31 | H128: 101 | I128: 39 | J128: 140
A129: FL | B129: Bradenton | C129: Manatee | D129: 2006-04-01 | E129: 2006-09-30 | F129: FLORIDA | G129: Manatee 4/1-9/30 | H129: 70 | I129: 39 | J129: 109
A130: FL | B130: Cocoa Beach | C130: Brevard | F130: FLORIDA | G130: Brevard 1/0-1/0 | H130: 85 | I130: 44 | J130: =SUM(H130:I130) -> 129
A131: FL | B131: Daytona Beach | C131: Volusia | D131: 2005-10-01 | E131: 2006-01-31 | F131: FLORIDA | G131: =+C131&" "&MONTH(D131)&"/"&DAY(D131)&"-"&MONTH(E131)&"/"&DAY(E131) -> Volusia 10/1-1/31 | H131: 68 | I131: 39 | J131: 107
A132: FL | B132: Daytona Beach | C132: Volusia | D132: 2006-02-01 | E132: 2006-03-31 | F132: FLORIDA | G132: Volusia 2/1-3/31 | H132: 117 | I132: 39 | J132: 156
A133: FL | B133: Daytona Beach | C133: Volusia | D133: 2006-04-01 | E133: 2006-07-31 | F133: FLORIDA | G133: Volusia 4/1-7/31 | H133: 82 | I133: 39 | J133: 121
A134: FL | B134: Daytona Beach | C134: Volusia | D134: 2006-08-01 | E134: 2006-09-30 | F134: FLORIDA | G134: Volusia 8/1-9/30 | H134: 68 | I134: 39 | J134: 107
A135: FL | B135: Fort Lauderdale | C135: Broward | D135: 2005-10-01 | E135: 2005-12-31 | F135: FLORIDA | G135: Broward 10/1-12/31 | H135: 85 | I135: 54 | J135: 139
A136: FL | B136: Fort Lauderdale | C136: Broward | D136: 2006-01-01 | E136: 2006-03-31 | F136: FLORIDA | G136: Broward 1/1-3/31 | H136: 123 | I136: 54 | J136: 177
A137: FL | B137: Fort Lauderdale | C137: Broward | D137: 2006-04-01 | E137: 2006-09-30 | F137: FLORIDA | G137: Broward 4/1-9/30 | H137: 85 | I137: 54 | J137: 139
A138: FL | B138: Fort Myers | C138: Lee | D138: 2005-10-01 | E138: 2005-12-31 | F138: FLORIDA | G138: Lee 10/1-12/31 | H138: 68 | I138: 49 | J138: 117
A139: FL | B139: Fort Myers | C139: Lee | D139: 2006-01-01 | E139: 2006-04-30 | F139: FLORIDA | G139: Lee 1/1-4/30 | H139: 107 | I139: 49 | J139: 156
A140: FL | B140: Fort Myers | C140: Lee | D140: 2006-05-01 | E140: 2006-09-30 | F140: FLORIDA | G140: Lee 5/1-9/30 | H140: 68 | I140: 49 | J140: 117
A141: FL | B141: Fort Pierce | C141: Saint Lucie | D141: 2005-10-01 | E141: 2006-01-31 | F141: FLORIDA | G141: Saint Lucie 10/1-1/31 | H141: 72 | I141: 49 | J141: 121
A142: FL | B142: Fort Pierce | C142: Saint Lucie | D142: 2006-02-01 | E142: 2006-03-31 | F142: FLORIDA | G142: Saint Lucie 2/1-3/31 | H142: 110 | I142: 49 | J142: 159
A143: FL | B143: Fort Pierce | C143: Saint Lucie | D143: 2006-04-01 | E143: 2006-09-30 | F143: FLORIDA | G143: Saint Lucie 4/1-9/30 | H143: 72 | I143: 49 | J143: 121
A144: FL | B144: Fort Walton Beach/De Funiak Springs | C144: Okaloosa and Walton | D144: 2005-10-01 | E144: 2005-10-31 | F144: FLORIDA | G144: Okaloosa and Walton 10/1-10/31 | H144: 90 | I144: 44 | J144: 134
A145: FL | B145: Fort Walton Beach/De Funiak Springs | C145: Okaloosa and Walton | D145: 2005-11-01 | E145: 2006-02-28 | F145: FLORIDA | G145: Okaloosa and Walton 11/1-2/28 | H145: 75 | I145: 44 | J145: 119
A146: FL | B146: Fort Walton Beach/De Funiak Springs | C146: Okaloosa and Walton | D146: 2006-03-01 | E146: 2006-05-31 | F146: FLORIDA | G146: Okaloosa and Walton 3/1-5/31 | H146: 119 | I146: 44 | J146: 163
A147: FL | B147: Fort Walton Beach/De Funiak Springs | C147: Okaloosa and Walton | D147: 2006-06-01 | E147: 2006-08-31 | F147: FLORIDA | G147: Okaloosa and Walton 6/1-8/31 | H147: 139 | I147: 44 | J147: 183
A148: FL | B148: Fort Walton Beach/De Funiak Springs | C148: Okaloosa and Walton | D148: 2006-09-01 | E148: 2006-09-30 | F148: FLORIDA | G148: Okaloosa and Walton 9/1-9/30 | H148: 90 | I148: 44 | J148: 134
A149: FL | B149: Gainesville | C149: Alachua | F149: FLORIDA | G149: Alachua 1/0-1/0 | H149: 69 | I149: 44 | J149: 113
A150: FL | B150: Gulf Breeze | C150: Santa Rosa | D150: 2005-10-01 | E150: 2006-02-28 | F150: FLORIDA | G150: Santa Rosa 10/1-2/28 | H150: 79 | I150: 39 | J150: 118
A151: FL | B151: Gulf Breeze | C151: Santa Rosa | D151: 2006-03-01 | E151: 2006-07-31 | F151: FLORIDA | G151: Santa Rosa 3/1-7/31 | H151: 102 | I151: 39 | J151: 141
A152: FL | B152: Gulf Breeze | C152: Santa Rosa | D152: 2006-08-01 | E152: 2006-09-30 | F152: FLORIDA | G152: Santa Rosa 8/1-9/30 | H152: 79 | I152: 39 | J152: 118
A153: FL | B153: Jacksonville/Jacksonville Beach/Mayport Naval Station/Fernandina Beach/Atlantic Beach | C153: Duval, City of Jacksonville and Nassau | F153: FLORIDA | G153: Duval, City of Jacksonville and Nassau 1/0-1/0 | H153: 73 | I153: 49 | J153: 122
A154: FL | B154: Key West | C154: Monroe | D154: 2005-10-01 | E154: 2005-11-30 | F154: FLORIDA | G154: Monroe 10/1-11/30 | H154: 132 | I154: 64 | J154: 196
A155: FL | B155: Key West | C155: Monroe | D155: 2005-12-01 | E155: 2006-01-31 | F155: FLORIDA | G155: Monroe 12/1-1/31 | H155: 157 | I155: 64 | J155: 221
A156: FL | B156: Key West | C156: Monroe | D156: 2006-02-01 | E156: 2006-03-31 | F156: FLORIDA | G156: Monroe 2/1-3/31 | H156: 200 | I156: 64 | J156: 264
A157: FL | B157: Key West | C157: Monroe | D157: 2006-04-01 | E157: 2006-09-30 | F157: FLORIDA | G157: Monroe 4/1-9/30 | H157: 132 | I157: 64 | J157: 196
A158: FL | B158: Kissimmee | C158: Osceola | D158: 2005-10-01 | E158: 2005-12-31 | F158: FLORIDA | G158: Osceola 10/1-12/31 | H158: 60 | I158: 39 | J158: 99
A159: FL | B159: Kissimmee | C159: Osceola | D159: 2006-01-01 | E159: 2006-04-30 | F159: FLORIDA | G159: Osceola 1/1-4/30 | H159: 68 | I159: 39 | J159: 107
A160: FL | B160: Kissimmee | C160: Osceola | D160: 2006-05-01 | E160: 2006-09-30 | F160: FLORIDA | G160: Osceola 5/1-9/30 | H160: 60 | I160: 39 | J160: 99
A161: FL | B161: Lakeland | C161: Polk | F161: FLORIDA | G161: Polk 1/0-1/0 | H161: 66 | I161: 39 | J161: 105
A162: FL | B162: Leesburg | C162: Lake | F162: FLORIDA | G162: Lake 1/0-1/0 | H162: 61 | I162: 44 | J162: 105
A163: FL | B163: Miami | C163: Miami-Dade | D163: 2005-10-01 | E163: 2005-12-31 | F163: FLORIDA | G163: Miami-Dade 10/1-12/31 | H163: 108 | I163: 59 | J163: 167
A164: FL | B164: Miami | C164: Miami-Dade | D164: 2006-01-01 | E164: 2006-04-30 | F164: FLORIDA | G164: Miami-Dade 1/1-4/30 | H164: 144 | I164: 59 | J164: 203
A165: FL | B165: Miami | C165: Miami-Dade | D165: 2006-05-01 | E165: 2006-09-30 | F165: FLORIDA | G165: Miami-Dade 5/1-9/30 | H165: 93 | I165: 59 | J165: 152
A166: FL | B166: Naples | C166: Collier | D166: 2005-10-01 | E166: 2006-01-31 | F166: FLORIDA | G166: Collier 10/1-1/31 | H166: 97 | I166: 64 | J166: 161
A167: FL | B167: Naples | C167: Collier | D167: 2006-02-01 | E167: 2006-03-31 | F167: FLORIDA | G167: Collier 2/1-3/31 | H167: 171 | I167: 64 | J167: 235
A168: FL | B168: Naples | C168: Collier | D168: 2006-04-01 | E168: 2006-09-30 | F168: FLORIDA | G168: Collier 4/1-9/30 | H168: 97 | I168: 64 | J168: 161
A169: FL | B169: Ocala | C169: Marion | F169: FLORIDA | G169: Marion 1/0-1/0 | H169: 70 | I169: 44 | J169: 114
A170: FL | B170: Orlando | C170: Orange | D170: 2005-10-01 | E170: 2005-12-31 | F170: FLORIDA | G170: Orange 10/1-12/31 | H170: 83 | I170: 49 | J170: 132
A171: FL | B171: Orlando | C171: Orange | D171: 2006-01-01 | E171: 2006-03-31 | F171: FLORIDA | G171: Orange 1/1-3/31 | H171: 101 | I171: 49 | J171: 150
A172: FL | B172: Orlando | C172: Orange | D172: 2006-04-01 | E172: 2006-09-30 | F172: FLORIDA | G172: Orange 4/1-9/30 | H172: 83 | I172: 49 | J172: 132
A173: FL | B173: Palm Beach | C173: Boca Raton, Delray Beach, Jupiter, Palm Beach Gardens, Palm Beach, Palm Beach Shores, Singer Island and West Palm Beach. | D173: 2005-10-01 | E173: 2006-01-31 | F173: FLORIDA | G173: Boca Raton, Delray Beach, Jupiter, Palm Beach Gardens, Palm Beach, Palm Beach Shores, Singer Island and West Palm Beach. 10/1-1/31 | H173: 96 | I173: 64 | J173: 160
A174: FL | B174: Palm Beach | C174: Boca Raton, Delray Beach, Jupiter, Palm Beach Gardens, Palm Beach, Palm Beach Shores, Singer Island and West Palm Beach. | D174: 2006-02-01 | E174: 2006-03-31 | F174: FLORIDA | G174: Boca Raton, Delray Beach, Jupiter, Palm Beach Gardens, Palm Beach, Palm Beach Shores, Singer Island and West Palm Beach. 2/1-3/31 | H174: 152 | I174: 64 | J174: 216
A175: FL | B175: Palm Beach | C175: Boca Raton, Delray Beach, Jupiter, Palm Beach Gardens, Palm Beach, Palm Beach Shores, Singer Island and West Palm Beach. | D175: 2006-04-01 | E175: 2006-09-30 | F175: FLORIDA | G175: Boca Raton, Delray Beach, Jupiter, Palm Beach Gardens, Palm Beach, Palm Beach Shores, Singer Island and West Palm Beach. 4/1-9/30 | H175: 96 | I175: 64 | J175: 160
A176: FL | B176: Panama City | C176: Bay | D176: 2005-10-01 | E176: 2006-02-28 | F176: FLORIDA | G176: Bay 10/1-2/28 | H176: 71 | I176: 49 | J176: 120
A177: FL | B177: Panama City | C177: Bay | D177: 2006-03-01 | E177: 2006-05-31 | F177: FLORIDA | G177: Bay 3/1-5/31 | H177: 101 | I177: 49 | J177: 150
A178: FL | B178: Panama City | C178: Bay | D178: 2006-06-01 | E178: 2006-07-31 | F178: FLORIDA | G178: Bay 6/1-7/31 | H178: 109 | I178: 49 | J178: 158
A179: FL | B179: Panama City | C179: Bay | D179: 2006-08-01 | E179: 2006-09-30 | F179: FLORIDA | G179: Bay 8/1-9/30 | H179: 71 | I179: 49 | J179: 120
A180: FL | B180: Pensacola/Pensacola Beach | C180: Escambia | F180: FLORIDA | G180: Escambia 1/0-1/0 | H180: 61 | I180: 49 | J180: 110
A181: FL | B181: Punta Gorda | C181: Charlotte | D181: 2005-10-01 | E181: 2006-01-31 | F181: FLORIDA | G181: Charlotte 10/1-1/31 | H181: 60 | I181: 44 | J181: 104
A182: FL | B182: Punta Gorda | C182: Charlotte | D182: 2006-02-01 | E182: 2006-03-31 | F182: FLORIDA | G182: Charlotte 2/1-3/31 | H182: 102 | I182: 44 | J182: 146
A183: FL | B183: Punta Gorda | C183: Charlotte | D183: 2006-04-01 | E183: 2006-09-30 | F183: FLORIDA | G183: Charlotte 4/1-9/30 | H183: 60 | I183: 44 | J183: 104
A184: FL | B184: Sarasota | C184: Sarasota | D184: 2005-10-01 | E184: 2006-01-31 | F184: FLORIDA | G184: Sarasota 10/1-1/31 | H184: 78 | I184: 49 | J184: 127
A185: FL | B185: Sarasota | C185: Sarasota | D185: 2006-02-01 | E185: 2006-03-31 | F185: FLORIDA | G185: Sarasota 2/1-3/31 | H185: 117 | I185: 49 | J185: 166
A186: FL | B186: Sarasota | C186: Sarasota | D186: 2006-04-01 | E186: 2006-09-30 | F186: FLORIDA | G186: Sarasota 4/1-9/30 | H186: 78 | I186: 49 | J186: 127
A187: FL | B187: Sebring | C187: Highlands | F187: FLORIDA | G187: Highlands 1/0-1/0 | H187: 71 | I187: 39 | J187: 110
A188: FL | B188: St. Augustine | C188: St. Johns | D188: 2005-10-01 | E188: 2006-01-31 | F188: FLORIDA | G188: St. Johns 10/1-1/31 | H188: 86 | I188: 54 | J188: 140
A189: FL | B189: St. Augustine | C189: St. Johns | D189: 2006-02-01 | E189: 2006-03-31 | F189: FLORIDA | G189: St. Johns 2/1-3/31 | H189: 116 | I189: 54 | J189: 170
A190: FL | B190: St. Augustine | C190: St. Johns | D190: 2006-04-01 | E190: 2006-09-30 | F190: FLORIDA | G190: St. Johns 4/1-9/30 | H190: 86 | I190: 54 | J190: 140
A191: FL | B191: Stuart | C191: Martin | D191: 2005-10-01 | E191: 2006-01-31 | F191: FLORIDA | G191: Martin 10/1-1/31 | H191: 87 | I191: 49 | J191: 136
A192: FL | B192: Stuart | C192: Martin | D192: 2006-02-01 | E192: 2006-03-31 | F192: FLORIDA | G192: Martin 2/1-3/31 | H192: 128 | I192: 49 | J192: 177
A193: FL | B193: Stuart | C193: Martin | D193: 2006-04-01 | E193: 2006-09-30 | F193: FLORIDA | G193: Martin 4/1-9/30 | H193: 87 | I193: 49 | J193: 136
A194: FL | B194: Tallahassee | C194: Leon | F194: FLORIDA | G194: Leon 1/0-1/0 | H194: 73 | I194: 44 | J194: =SUM(H194:I194) -> 117
A195: FL | B195: Tampa/St. Petersburg | C195: Pinellas and Hillsborough | F195: FLORIDA | G195: =+C195&" "&MONTH(D195)&"/"&DAY(D195)&"-"&MONTH(E195)&"/"&DAY(E195) -> Pinellas and Hillsborough 1/0-1/0 | H195: 84 | I195: 54 | J195: 138
A196: FL | B196: Vero Beach | C196: Indian River | D196: 2005-10-01 | E196: 2006-01-31 | F196: FLORIDA | G196: Indian River 10/1-1/31 | H196: 80 | I196: 49 | J196: 129
A197: FL | B197: Vero Beach | C197: Indian River | D197: 2006-02-01 | E197: 2006-03-31 | F197: FLORIDA | G197: Indian River 2/1-3/31 | H197: 128 | I197: 49 | J197: 177
A198: FL | B198: Vero Beach | C198: Indian River | D198: 2006-04-01 | E198: 2006-09-30 | F198: FLORIDA | G198: Indian River 4/1-9/30 | H198: 80 | I198: 49 | J198: 129
A199: GA | B199: Athens | C199: Clarke | F199: GEORGIA | G199: Clarke 1/0-1/0 | H199: 69 | I199: 39 | J199: 108
A200: GA | B200: Atlanta | C200: Fulton, Dekalb and Cobb | F200: GEORGIA | G200: Fulton, Dekalb and Cobb 1/0-1/0 | H200: 115 | I200: 49 | J200: 164
... 432 more rows
